Cogmind - Beta 17 @@@ ROGUE MODE // 2026.07.27 @ 13:29:50 Player: f3-rnm Result: Destroyed by V786-d with Heavy Hardcell Cannon Performance ------------- Evolutions (8) 4000 Regions Visited (31) 6200 Robots Destroyed (307) 1535 Value Destroyed (13580) 13580 Prototype IDs (179) 3580 Alien Tech Used (2) 400 Bonus (36496) 36496 TOTAL SCORE: 65791 Bonus ------- High Alert Combat Kills 1403 Follower Combat Kills 3186 Prayed to X0-1V1 5000 Major X0-1V1 Interference 17600 Network Hubs Disabled 200 Aligned with FarCom 300 Met Data Miner 300 Met Imprinter 300 Was Imprinted 300 Met Warlord at Base 500 MAIN.C Attacked Warlord 500 Warlord Defense Kills 3810 Met R17 at Cetus 500 Used Core Reset Matrix 3000 Scanned by Researcher 500 Friendly Fire -903 Cogmind --------- Core Integrity 0/1450 Matter 746/1400 Energy 1074/1300 System Corruption 24% Temperature Cool (2) Movement Hovering (260) Ox2 Location -2/Protoforge Parts ------- > --- POWER (3) -------- (None) > --- PROPULSION (8) --- Combat Linear Gravjet > --- UTILITY (9) ------ Large Storage Unit Launcher Loader > --- WEAPON (3) ------- (None) > --- INVENTORY (15) --- Particle Reactor Cooled Antimatter Reactor Experimental Coolant Injector Zionite Biocell (600) Femtoactuators Crosscalibrator Concept Plasma Driver Concept Plasma Driver Faulty Concept XC Strikerail Faulty Concept XC Strikerail CPS Tube (2) Gravity Flail Faulty Concept Deflector Sword Experimental Jetlance Peak State ------------ > --- POWER ------------ Improved Quantum Reactor Experimental Antimatter Reactor Hybrid Graviton Reactor > --- PROPULSION ------- Combat Gravmag System Combat Antigrav System Combat Linear Gravjet Combat Linear Gravjet Gravjet Array Gravjet Array > --- UTILITY ---------- Concept Phasing Heat Sink Large Storage Unit Enhanced Optical Array Advanced Signal Interpreter Concept Weapon Articulator Femtoactuators Experimental Force Booster Experimental Cloaking Device Advanced Force Field > --- WEAPON ----------- Gravity Flail Heavy Scimitar of Distortion Concept Deflector Sword > --- INVENTORY -------- Particle Reactor Cooled Antimatter Reactor Experimental Coolant Injector Zionite Biocell Femtoactuators Crosscalibrator Concept Plasma Driver Concept Plasma Driver Concept XC Strikerail Concept XC Strikerail Ragnarok Missile Launcher CPS Tube Concept Deflector Sword Experimental Jetlance Experimental Jetlance [Rating: 215] Favorites ----------- Power Light Fission Core Engine Cooled Deuterium Engine Power Core Light Fission Core Reactor Improved Quantum Reactor Propulsion Combat Linear Gravjet Treads Light Treads Leg Aluminum Leg Wheel Wheel Hover Unit Combat Linear Gravjet Utility Large Storage Unit Device X0-1V1's Piety Tracker Storage Large Storage Unit Processor Enhanced Optical Array Protection Centrium Medium Armor Plating Weapon Advanced Beam Cannon Energy Gun Zionite Phaser-S Energy Cannon Advanced Beam Cannon Ballistic Gun Light Assault Rifle Ballistic Cannon Flak Cannon Launcher Ragnarok Missile Launcher Special Weapon CPS Tube Impact Weapon Gravity Flail Slashing Weapon Vibroblade Piercing Weapon Makeshift Spear Build | -11 -10 -10 -10 -9 -8 -8 -7 -7 -7 -7 -6 -6 -6 -6 -6 -5 -5 -5 -5 -5 -5 -4 -4 -4 -4 -3 -3 -3 -2 -2 -2 ------- Run | Yrd Mat Min Exi Min Mat Sto Fac Low Low Zio Pro Fac Low Low Dat Pro Fac Ext Cet Arc Hub Fac Upp Upp War Pro Res Tes Res Qua Frg Slots Evolved 16 | . . . . . 4 . 2 . . . . 2 . . . . 2 . . . . 2 . . . . 2 . 2 . . Power 1 | . . . . . . . . . . . . . . . . . . . . . . . . . . . . . 1 . . Propulsion 6 | . . . . . 2 . 1 . . . . . . . . . 1 . . . . 1 . . . . 1 . . . . Utility 8 | . . . . . 1 . 1 . . . . 2 . . . . 1 . . . . 1 . . . . 1 . 1 . . Weapon 1 | . . . . . 1 . . . . . . . . . . . . . . . . . . . . . . . . . . Parts Attached 302 | 6 7 1 4 4 15 38 24 3 7 . 1 9 4 4 1 2 8 12 11 2 1 25 4 6 21 . 1 30 15 6 30 Power 35 | 1 1 . . 1 2 4 3 1 1 . . . . 1 . . . 1 1 . . 2 1 1 1 . . 5 2 1 5 Engine 6 | 1 . . . 1 1 2 . . 1 . . . . . . . . . . . . . . . . . . . . . . Core 14 | . 1 . . . 1 2 3 1 . . . . . 1 . . . 1 . . . 1 . 1 . . . 1 . . 1 Reactor 15 | . . . . . . . . . . . . . . . . . . . 1 . . 1 1 . 1 . . 4 2 1 4 Propulsion 78 | 2 . . 1 1 5 15 10 . . . . 3 . . . 2 2 2 1 . . 6 . . 12 . 1 6 3 3 3 Treads 11 | 2 . . 1 . . 6 2 . . . . . . . . . . . . . . . . . . . . . . . . Leg 15 | . . . . . 5 9 1 . . . . . . . . . . . . . . . . . . . . . . . . Wheel 3 | . . . . 1 . . 1 . . . . . . . . . . . . . . 1 . . . . . . . . . Hover 49 | . . . . . . . 6 . . . . 3 . . . 2 2 2 1 . . 5 . . 12 . 1 6 3 3 3 Flight . | . . . . . . . . . . . . . . . . . . . . . . . . . . . . . . . . Utility 101 | 1 5 1 3 . 3 3 5 2 5 . . 3 2 . 1 . 3 4 3 . . 9 2 2 4 . . 13 7 2 18 Device 70 | . 3 1 . . 3 3 3 1 2 . . 2 1 . 1 . 2 3 2 . . 8 1 2 2 . . 9 5 2 14 Storage 9 | 1 2 . 2 . . . 1 . . . . . . . . . . 1 . . . . . . 1 . . . 1 . . Processor 11 | . . . . . . . . 1 2 . . 1 . . . . . . . . . . 1 . . . . 2 1 . 3 Hackware . | . . . . . . . . . . . . . . . . . . . . . . . . . . . . . . . . Protection 11 | . . . 1 . . . 1 . 1 . . . 1 . . . 1 . 1 . . 1 . . 1 . . 2 . . 1 Artifact . | . . . . . . . . . . . . . . . . . . . . . . . . . . . . . . . . Weapon 88 | 2 1 . . 2 5 16 6 . 1 . 1 3 2 3 . . 3 5 6 2 1 8 1 3 4 . . 6 3 . 4 Energy Gun 19 | 1 . . . . . 7 2 . . . . 1 2 2 . . . . 3 . . . . . 1 . . . . . . Energy Cannon 6 | . . . . . . 3 1 . . . . . . . . . . . . . . 1 . . . . . . . . 1 Ballistic Gun 20 | 1 1 . . 2 5 3 . . . . . 1 . . . . . . 1 2 1 3 . . . . . . . . . Ballistic Cannon 6 | . . . . . . 2 1 . . . . . . . . . . . 2 . . . . . . . . 1 . . . Launcher 9 | . . . . . . 1 . . . . . . . 1 . . 2 1 . . . . . . . . . 1 2 . 1 Special Weapon 2 | . . . . . . . . . . . . . . . . . . . . . . . . 1 1 . . . . . . Impact Weapon 6 | . . . . . . . 1 . . . . . . . . . . 2 . . . 1 . . . . . 2 . . . Slashing Weapon 16 | . . . . . . . 1 . 1 . 1 1 . . . . 1 2 . . . 2 1 2 . . . 2 1 . 1 Piercing Weapon 4 | . . . . . . . . . . . . . . . . . . . . . . 1 . . 2 . . . . . 1 Special Melee Weapon . | . . . . . . . . . . . . . . . . . . . . . . . . . . . . . . . . Unidentified Prototypes 67 | . 1 . . . 1 6 2 . . . . 2 3 . . . 2 4 3 . . 8 . 1 5 . . 10 4 2 13 Corrupted Parts 1 | . . . . . . . . . . . . . . . . 1 . . . . . . . . . . . . . . . System Corruption 1 | . . . . . . . . . . . . . . . . 1 . . . . . . . . . . . . . . . Parts Lost 99 | . 2 4 . . 3 19 10 1 2 . . 1 . . . . 3 1 2 1 . 4 4 1 3 . . 12 . . 26 Power 13 | . . 1 . . 1 4 . . . . . . . . . . . . . . . 1 1 . . . . 1 . . 4 Propulsion 39 | . . 2 . . 1 11 6 . . . . . . . . . 1 . 1 . . 2 1 . 2 . . 4 . . 8 Utility 31 | . 1 . . . . 1 2 1 2 . . 1 . . . . 1 1 1 . . 1 2 1 1 . . 5 . . 10 Weapon 16 | . 1 1 . . 1 3 2 . . . . . . . . . 1 . . 1 . . . . . . . 2 . . 4 Highest Loss Streak 15 | . 2 4 . . 1 6 4 1 2 . . 1 . . . . 3 1 2 1 . 1 2 3 1 . . 4 . . 15 To Critical Strikes 3 | . . . . . . 1 . . . . . . . . . . . . . . . . . . . . . 1 . . 1 Average Backups 11 | . 7 11 6 7 11 16 15 11 10 11 11 10 12 12 11 11 11 11 10 11 10 10 9 9 11 11 10 9 10 12 12 Power . | . . . . . . . 1 1 . . . . 1 . . . . . . . . . . . . . . . . . . Propulsion . | . . 1 . . . 2 1 1 . . . 1 2 2 2 1 . . . 1 1 . . . . 1 . . . . . Utility 5 | . 4 5 2 4 5 6 3 3 4 7 7 5 5 6 5 5 6 6 5 5 5 6 5 5 4 5 4 4 5 7 5 Weapon 4 | . 2 4 4 3 4 5 8 4 4 4 4 3 3 3 3 3 3 3 4 4 3 3 2 2 4 4 4 4 3 3 2 Tool/Special . | . . . . . . . . . . . . . . . . . . . . . . . . . . . . . . . . Unused Backups 59 | . . 7 . . 1 6 4 1 1 1 1 2 2 1 . 1 2 5 . . . . 1 . 2 . . 4 2 . 15 Power 4 | . . . . . 1 . . . . . . . . . . . . . . . . . . . . . . . . . 3 Propulsion 6 | . . . . . . 1 . . . . . . . . . . . 1 . . . . . . . . . 1 . . 3 Utility 26 | . . 5 . . . 2 1 1 1 . 1 2 . . . 1 1 4 . . . . 1 . 1 . . 2 1 . 2 Weapon 20 | . . 2 . . . 3 3 . . 1 . . 2 1 . . 1 . . . . . . . 1 . . 1 . . 5 Tool/Special 3 | . . . . . . . . . . . . . . . . . . . . . . . . . . . . . 1 . 2 Average Slot Usage (%) 85 | . 92 68 40 96 84 93 86 85 87 92 93 88 91 89 87 91 82 92 97 93 94 89 83 84 88 84 80 92 99 99 88 Engine 1 | . 7 . . 12 4 2 . . . 7 7 6 6 5 . . . . . . . . . . . . . . . . . Core 2 | . 4 9 . . 1 3 5 7 5 . . . . . 6 6 4 4 . . . 3 5 4 5 . . . . . . Reactor 2 | . . . . . . . . . . . . . . . . . . . 4 3 5 2 5 5 5 5 4 6 12 13 10 Treads 6 | . 28 18 13 14 3 12 15 . . . . . . . . . . . . . . . . . . . . . . . . Leg 2 | . . . . . 18 21 2 . . . . . . . . . . . . . . . . . . . . . . . . Hover 20 | . . . . . . . 12 38 33 38 38 33 33 33 33 33 30 33 35 35 35 30 25 26 30 36 38 39 39 39 29 Device 16 | . 8 12 14 14 15 17 16 13 13 7 7 17 7 6 7 13 11 14 17 17 20 19 25 24 21 15 18 20 23 25 23 Storage 7 | . 14 9 11 14 9 9 9 7 7 7 7 6 6 6 6 6 4 4 5 5 5 5 5 5 5 5 4 4 4 4 4 Processor 3 | . . . . . . . . 2 5 7 7 8 13 13 13 13 9 6 5 5 5 5 5 5 5 5 4 5 8 8 7 Protection 1 | . . . 1 . . . 1 . . 7 2 . 5 2 . . 2 3 4 5 2 4 . . . 5 4 4 1 . . Energy Gun 3 | . 8 . . . . 8 . . . . . 1 18 20 20 17 11 2 4 7 . . . . . . . . . . . Energy Cannon 1 | . . . . . . 7 13 . . . . . . . . . . . . . . 1 . . . . . . . . . Ballistic Gun 4 | . 18 18 . 27 26 7 . . . . . . . . . . . . 1 10 17 7 . . . . . . . . . Slashing Weapon 4 | . . . . . . . 1 7 13 15 22 13 . . . . 2 11 7 . . 4 10 9 8 5 4 4 7 7 5 Peak Build Rating 215 | 6 22 22 21 24 44 48 70 62 66 64 68 90 94 88 93 93 110 119 115 113 110 131 135 120 154 147 160 176 183 182 215 Average Rating 82 | 4 8 17 18 23 35 42 50 57 55 63 65 80 87 85 84 89 99 96 105 104 103 120 120 109 119 143 154 158 177 178 182 On Entrance 86 | . 6 22 13 21 24 42 41 58 62 63 64 65 89 88 81 93 93 104 101 113 105 104 118 108 112 154 143 154 165 176 180 Avg Prop Armor Cover (%) 4 | . . . . 12 10 5 7 . . . . . . . . . . . . . . 1 . . . . . 4 1 2 2 Naked Turns 43 | . . 43 . . . . . . . . . . . . . . . . . . . . . . . . . . . . . Heaviest Build 116 | 13 49 49 41 47 58 62 104 36 39 39 42 47 51 51 48 48 64 73 108 75 71 78 58 60 96 93 96 93 99 95 116 Greatest Support 137 | 40 40 40 20 20 50 80 100 43 43 43 43 51 51 51 51 57 68 73 73 73 73 82 62 62 100 95 109 127 132 137 124 Greatest Overweight (x) 9 | . 1 1 2 4 4 2 9 . 3 . . . . . . . . 1 1 1 . 1 1 . 1 . . 1 . . 2 Average Overweight (x) . | . . . . 3 2 . 1 . . . . . . . . . . . . . . . . . . . . . . . . Largest Inventory Capacity 20 | 8 20 20 20 20 20 20 20 15 15 15 15 15 15 15 15 15 15 15 15 15 15 15 15 15 15 15 15 15 15 15 15 Average Capacity 15 | 6 11 14 15 20 20 20 19 15 15 15 15 15 15 15 15 15 15 15 15 15 15 15 15 15 15 15 15 15 15 15 15 Most Carried 20 | . 15 15 12 12 20 20 20 15 15 15 15 15 15 15 15 15 15 15 15 15 15 15 15 15 15 14 14 15 15 15 15 Average Carried 14 | . 7 11 8 10 14 19 18 13 12 14 15 14 14 14 14 14 14 14 14 15 14 14 14 14 14 14 13 14 14 14 14 Final Capacity 20 | 8 20 5 20 20 20 20 15 15 15 15 15 15 15 15 15 15 15 15 15 15 15 15 15 15 15 15 15 15 15 15 15 Final Carried 20 | . 15 5 12 11 19 20 15 15 15 15 15 15 15 15 14 15 15 15 15 15 15 15 15 15 13 14 14 15 13 15 14 Class Distribution -------------------- 34% | Mutant 15% | Scavenger-Gunner 11% | Scavenger-Gladiator 7% | Scavenger-Mutant 5% | Messiah-Gunner 4% | Scavenger-Scout 3% | Gunner 3% | Scavenger-Sprinter 3% | Scavenger-Ninja Dominant Class ---------------- Mutant | -10/Materials Mutant | -10/Mines Mutant | -10/Exiles Mutant | -9/Mines Scavenger-Skirmisher | -8/Materials Scavenger-Gunner | -8/Storage Mutant | -7/Factory Mutant | -7/Lower Caves Gladiator | -7/Lower Caves Mutant | -7/Zion Mutant | -6/Proximity Caves Mutant | -6/Factory Messiah-Gunner | -6/Lower Caves Messiah-Gunner | -6/Lower Caves Messiah-Gunner | -6/Data Miner Messiah-Gunner | -5/Proximity Caves Gunner | -5/Factory Commander-Gladiator | -5/Extension Scavenger-Gladiator | -5/Cetus Scavenger-Gunner | -5/Archives Scavenger-Gunner | -5/Hub_04(d) Scavenger-Gunner | -4/Factory Scavenger-Sprinter | -4/Upper Caves Scavenger-Gladiator | -4/Upper Caves Scavenger-Mutant | -4/Warlord Scavenger-Mutant | -3/Proximity Caves Scavenger-Mutant | -3/Research Scavenger-Gladiator | -3/Testing Scavenger-Scout | -2/Research Scavenger-Ninja | -2/Quarantine Scavenger-Gladiator | -2/Protoforge Resources | -11 -10 -10 -10 -9 -8 -8 -7 -7 -7 -7 -6 -6 -6 -6 -6 -5 -5 -5 -5 -5 -5 -4 -4 -4 -4 -3 -3 -3 -2 -2 -2 ----------- Run | Yrd Mat Min Exi Min Mat Sto Fac Low Low Zio Pro Fac Low Low Dat Pro Fac Ext Cet Arc Hub Fac Upp Upp War Pro Res Tes Res Qua Frg Matter Collected 10766 | 203 368 124 . 55 523 1254 767 47 65 88 10 95 40 87 . 234 359 658 245 116 143 530 207 123 1285 62 15 1001 396 190 1476 Remotely . | . . . . . . . . . . . . . . . . . . . . . . . . . . . . . . . . Salvage Created 12511 | . 563 104 . 53 316 1969 1069 74 111 . . 513 165 149 . 527 279 711 194 87 288 754 289 81 679 1 15 1542 640 131 1207 Parts 630 | . 34 1 . 7 18 110 38 4 11 . . 18 7 8 . 20 6 33 12 2 17 33 14 17 26 . 3 63 45 20 63 Haulers Intercepted 16 | . 1 . . . . 4 1 . . . . 2 . . . . 2 1 . . . 1 . . . . . 2 2 . . Recyclers Shooed 6 | . 2 . . 2 . . . . . . . . . . . . . 1 . . . . . . . . . 1 . . . Parts Field Recycled . | . . . . . . . . . . . . . . . . . . . . . . . . . . . . . . . . Retrieved Matter . | . . . . . . . . . . . . . . . . . . . . . . . . . . . . . . . . Parts Self-Destructed 58 | . . . . . . . . 13 . 2 2 . 9 8 . 12 . . . . . . 6 6 . . . . . . . Prevented 11 | . . . . . . . . . . . 2 . . . . 8 . . . . . . . 1 . . . . . . . Parts Restored 3 | . . . . . . . . . . . . . . . . . . . . . . . . . . . . . . . 3 Faulty 3 | . . . . . . . . . . . . . . . . . . . . . . . . . . . . . . . 3 Kills | -11 -10 -10 -10 -9 -8 -8 -7 -7 -7 -7 -6 -6 -6 -6 -6 -5 -5 -5 -5 -5 -5 -4 -4 -4 -4 -3 -3 -3 -2 -2 -2 ------- Run | Yrd Mat Min Exi Min Mat Sto Fac Low Low Zio Pro Fac Low Low Dat Pro Fac Ext Cet Arc Hub Fac Upp Upp War Pro Res Tes Res Qua Frg Combat Hostiles Destroyed 232 | . 15 2 . 3 6 33 20 3 1 . . 4 3 2 . 10 1 14 3 1 2 7 6 7 35 1 . 17 3 1 32 Melee 36 | . . . . . . . 1 3 1 . . . 1 . . . . 3 . . . 3 4 2 . . . 3 3 . 12 Guns 67 | . 15 2 . 3 6 21 . . . . . 4 2 2 . 7 1 . . 1 2 1 . . . . . . . . . Cannons 42 | . . . . . . 12 18 . . . . . . . . . . . 3 . . . . . . . . 8 . 1 . AOE 78 | . . . . . . . 1 . . . . . . . . 1 . 10 . . . 3 2 5 35 1 . 3 . . 17 Classes Destroyed 24 | . 4 . . 1 2 5 1 . 1 . . 1 . 1 . 1 . . . . . 1 . . 3 . . 2 . . 1 Worker 16 | . . . . 1 . 7 1 . . . . 1 . . . . . 2 . . 2 . . . . . . . 1 . 1 Builder 10 | . . . . . . . . . . . . 1 . . . . . 4 . . . . . . . . 1 4 . . . Tunneler 1 | . . . . . 1 . . . . . . . . . . . . . . . . . . . . . . . . . . Hauler 16 | . 1 . . . . 4 1 . . . . 2 . . . . 2 1 . . . 1 . . . . . 2 2 . . Recycler 11 | . 1 . . . . 4 3 . . . . . . . . . . 2 . . . 1 . . . . . . . . . Operator 11 | . . . . . . 1 . . . . . . . . . . . . . . 1 1 . . . . . 1 3 4 . Drone 8 | . . . . . . . . . . . . . . . . 2 . . . . . . . . . . . . . . 6 Watcher 4 | . . . . . . 1 . . . . . . . . . . 1 1 1 . . . . . . . . . . . . Swarmer 50 | . 6 . . 3 . 6 9 3 . . . . . . . 1 . 8 . . . . . 5 5 . . . . . 4 Saboteur 6 | . . . . . . . . . . . . . . . . . . . . . . . . . 6 . . . . . . Grunt 81 | . 9 2 . . 5 17 5 . . . . 3 2 . . 7 1 4 . . . 3 3 . 18 . . 2 . . . Brawler 5 | . . . . . . 1 1 . . . . . . . . . . . . . . . . . 3 . . . . . . Duelist 4 | . . . . . . 4 . . . . . . . . . . . . . . . . . . . . . . . . . Protector 1 | . . . . . . . . . . . . . . . . . . . . . . . . . 1 . . . . . . Researcher 7 | . . . . . . . . . . . . . . . . . . . . . . . . . . . . 4 . . 3 Sentry 16 | . . . . . . 5 3 . . . . . . . . . . 1 . 1 . . . . . 1 . . . . 5 Specialist 1 | . . . . . . . . . . . . . . . . . . . . . . . . . 1 . . . . . . Hunter 21 | . . . . . 1 . 1 . . . . . . 1 . . . . . . . 3 . . . . . 11 . . 4 Programmer 12 | . . . . . . . 1 . . . . 1 . . . . . . . . . . 2 . . . . 3 3 1 1 Behemoth 2 | . . . . . . . . . . . . . . 1 . . . . . . . . . . 1 . . . . . . Cetus Guard 3 | . . . . . . . . . . . . . . . . . . . 3 . . . . . . . . . . . . Lightning 2 | . . . . . . . . . . . . . . . . . . . . . 2 . . . . . . . . . . Decapitator 12 | . . . . . . . . . . . . . . . . . . . . . . . . . . . . . . . 12 Striker 1 | . . . . . . . . . . . . . . . . . . . . . . . . . . . . 1 . . . Z-Heavy 1 | . . . . . . . . . . . . . . . . . . . . . . 1 . . . . . . . . . Thief 1 | . . . . . . . . . . . . . 1 . . . . . . . . . . . . . . . . . . Master Thief 4 | . . . . . . . . . 1 . . . . . . . . . . . . . 1 2 . . . . . . . Guerrilla 1 | . . . . . . . . . . . . . . . . . . 1 . . . . . . . . . . . . . Wizard 2 | . . . . . . . . . . . . . . . . . . . . . 1 1 . . . . . . . . . Commander 1 | . . . . . . . . . 1 . . . . . . . . . . . . . . . . . . . . . . Best Kill Streak 16 | . 4 2 . 2 3 11 5 2 1 . . 3 2 1 . 7 2 8 2 1 4 3 4 5 16 1 1 9 2 1 7 Combat Bots Only 16 | . 3 2 . 2 2 9 5 2 1 . . 2 2 1 . 7 1 7 2 1 2 3 4 5 16 1 . 8 2 1 7 Max Kills in Single Turn 4 | . 1 1 . 1 1 2 1 1 1 . . 1 1 1 . 2 1 4 1 1 2 2 2 2 4 1 1 3 1 1 3 Gunslinging . | . . . . . . . . . . . . . . . . . . . . . . . . . . . . . . . . Exploded 4 | . . . . . . . 1 . . . . . . . . 1 . 3 . . . 2 2 2 4 1 . 2 . . 3 Melee 1 | . . . . . . . 1 1 1 . . . 1 . . . . 1 . . . 1 1 1 . . . 1 1 . 1 Uniques/NPCs Destroyed . | . . . . . . . . . . . . . . . . . . . . . . . . . . . . . . . . Combat | -11 -10 -10 -10 -9 -8 -8 -7 -7 -7 -7 -6 -6 -6 -6 -6 -5 -5 -5 -5 -5 -5 -4 -4 -4 -4 -3 -3 -3 -2 -2 -2 -------- Run | Yrd Mat Min Exi Min Mat Sto Fac Low Low Zio Pro Fac Low Low Dat Pro Fac Ext Cet Arc Hub Fac Upp Upp War Pro Res Tes Res Qua Frg Hostile Shots Fired 1762 | . 77 7 . 17 58 194 209 23 7 . 10 27 8 25 . 15 27 19 17 14 15 91 33 22 26 34 . 316 127 19 325 Missed 662 | . 19 1 . 7 16 46 62 10 2 . 8 11 4 9 . 8 9 9 5 7 2 42 14 11 10 20 . 131 74 10 115 Hits 1100 | . 58 6 . 10 42 148 147 13 5 . 2 16 4 16 . 7 18 10 12 7 13 49 19 11 16 14 . 185 53 9 210 Melee 45 | . . . . . . 20 2 2 5 . . . . . . . . . . . . . 4 5 1 . . . . . 6 Projectile 1055 | . 58 6 . 10 42 128 145 11 . . 2 16 4 16 . 7 18 10 12 7 13 49 15 6 15 14 . 185 53 9 204 AOE 13 | . . 4 . . . . . . . . . . . . . . . . . . . . . . 2 . . 1 . . 6 Critical Strikes 52 | . . . . 1 3 4 1 . . . . . . 1 . 1 . . 3 . 3 1 1 1 1 . . 14 2 1 14 Part Disruptions 4 | . . . . . . . . . . . . . . . . . . . . . . . 2 . . . . . . 1 1 Damage Taken 20097 | . 591 163 . 81 684 2347 1759 103 . . 17 251 79 329 . 149 400 351 406 189 505 1006 381 184 520 273 . 3503 624 123 5079 Core 3117 | . 75 39 . 24 83 320 214 27 . . . 5 21 56 . 50 21 60 . . . 73 21 74 48 18 . 424 146 . 1318 Absorbed by Shields 2621 | . . . . . . . 35 40 . . . . . . . . . 4 . . . . . . . . . 94 481 89 1878 Redirected to Shielding 37 | . . . . . . . . . . . 7 . . 30 . . . . . . . . . . . . . . . . . Ignored by Resistances 69 | . . . . . . . . . . . . . . . . . 9 . . . . . . . . . . 60 . . . Regen/Repaired (Parts) 659 | . . . . . . . . . . . . . . . . . . . . . . . . . 129 . . 406 124 . . Core Remaining (%) 82 | 100 . . . 93 . 41 . . . . 90 . . . . 84 . . . . 91 . . . . 79 . 82 . . . Volleys Fired 479 | . 53 6 . 15 29 102 53 . . . . . 3 12 . 10 30 21 15 9 12 27 3 3 28 7 . 17 . 1 23 Largest 4 | . 2 2 . 2 3 3 3 . . . . . 2 2 . 2 2 1 1 4 3 4 1 1 1 1 . 1 . 1 1 Hottest 255 | . 70 40 . 40 68 204 204 . . . . . 120 120 . 120 120 60 48 255 105 140 46 46 46 46 . 100 . 70 160 Shots Fired 1087 | . 106 12 . 30 86 298 142 . . . . 23 16 48 . 36 57 21 21 24 35 50 3 3 28 8 . 17 . 1 22 Gun 723 | . 106 12 . 30 86 212 . . . . . 23 16 48 . 31 57 9 . 24 35 34 . . . . . . . . . Cannon 279 | . . . . . . 86 142 . . . . . . . . . . . 21 . . 13 . . . . . 15 . . 2 Launcher 83 | . . . . . . . . . . . . . . . . 5 . 12 . . . 3 3 3 26 8 . 2 . 1 20 Special 2 | . . . . . . . . . . . . . . . . . . . . . . . . . 2 . . . . . . Kinetic 501 | . 75 12 . 30 86 169 6 . . . . . . . . . . . 21 18 35 34 . . . . . 15 . . . Thermal 426 | . 31 . . . . 129 136 . . . . 23 13 31 . 22 20 . . 6 . 13 . . . . . . . . 2 Explosive 78 | . . . . . . . . . . . . . . . . . . 12 . . . 3 3 3 26 8 . 2 . 1 20 Electromagnetic 5 | . . . . . . . . . . . . . . . . 5 . . . . . . . . . . . . . . . Phasic 75 | . . . . . . . . . . . . . 3 17 . 9 37 9 . . . . . . . . . . . . . Robot Hit Streak 23 | . 9 7 . 3 12 23 17 . . . . 11 9 15 . 16 10 4 7 16 9 12 . . 6 13 . 19 . 3 3 Robot Miss Streak 6 | . 4 2 . 6 4 6 4 . . . . 2 2 1 . 2 2 1 2 1 1 2 . . . . . 6 . . 3 Penetration Max 1 | . . . . . . 1 . . . . . . . . . . . . 1 . 1 . . . . . . 1 . . . Secondary Targets 10 | . 2 . . . 1 6 . . . . . . . . . . . . . . 1 . . . . . . . . . . Max Gunslinging Chain 1 | . 1 . . . 1 1 . . . . . . . . . . . . . . 1 . . . . . . . . . . Autonomous 104 | . . . . . . . . . . . . 23 10 23 . 22 20 . 6 . . . . . . . . . . . . Shots Hit Robots 900 | . 68 5 . 13 55 195 98 9 5 . . 25 11 34 . 22 44 25 13 22 26 27 17 4 4 7 1 78 25 9 58 Core Hits 578 | . 37 5 . 7 24 105 39 3 4 . . 12 7 5 . 12 11 30 6 6 10 21 8 9 91 4 . 53 12 6 51 Critical Kills 15 | . . . . . . . . . . . . . . . . . . 1 2 1 2 2 . . . . . 7 . . . Critical Parts Destroyed 38 | . . . . . . . . . . . . . . . . . . 2 2 . 4 . . . . . . 29 . . 1 Critical Strikes 77 | . 2 . . . . 2 . . . . . . 1 . . . . 5 6 1 6 3 . . . . . 48 1 . 2 Burn 4 | . 2 . . . . 2 . . . . . . . . . . . . . . . . . . . . . . . . . Destroy 49 | . . . . . . . . . . . . . . . . . . . 5 1 6 2 . . . . . 35 . . . Blast 1 | . . . . . . . . . . . . . . . . . . . 1 . . . . . . . . . . . . Smash 9 | . . . . . . . . . . . . . . . . . . 3 . . . . . . . . . 5 . . 1 Sever 11 | . . . . . . . . . . . . . . . . . . 2 . . . . . . . . . 8 1 . . Impale 2 | . . . . . . . . . . . . . . . . . . . . . . 1 . . . . . . . . 1 Intensify 1 | . . . . . . . . . . . . . 1 . . . . . . . . . . . . . . . . . . Melee Attacks 398 | . . . . . . . 13 18 8 1 . 11 1 . . . 8 28 . . . 26 23 5 . 1 4 90 53 20 88 Impact 64 | . . . . . . . 2 6 . . . . . . . . . 5 . . . . . . . . . 18 . . 33 Slashing 320 | . . . . . . . 11 12 8 1 . 11 1 . . . 8 23 . . . 15 23 5 . 1 4 72 53 20 52 Piercing 14 | . . . . . . . . . . . . . . . . . . . . . . 11 . . . . . . . . 3 Sneak Attacks 45 | . . . . . . . 3 . 3 . . 5 . . . . . 9 . . . 3 . . . . 1 8 6 2 5 Combat Hostiles 1 | . . . . . . . . . . . . . . . . . . . . . . 1 . . . . . . . . . Follow-up Attacks 33 | . . . . . . . . 2 . . . 1 . . . . . 6 . . . 1 3 1 . . . 6 5 . 8 Damage Inflicted 45186 | . 739 55 . 145 512 3419 2429 339 271 . . 1147 327 1116 . 966 1486 3454 658 568 539 1584 1203 589 7324 269 123 5618 1763 909 7634 Guns 9050 | . 739 55 . 145 512 2292 . . . . . 620 260 1116 . 537 1247 231 . 568 539 189 . . . . . . . . . Cannons 4491 | . . . . . . 1127 1962 . . . . . . . . . . . 658 . . 34 . . . . . 328 . 178 204 Explosions 16276 | . . . . . . . 122 . . . . . . . . 429 . 2091 . . . 568 361 409 7324 269 . 704 . 114 3885 Melee 15358 | . . . . . . . 345 339 271 . . 527 67 . . . 228 1132 . . . 793 842 180 . . 123 4586 1763 617 3545 Ramming 11 | . . . . . . . . . . . . . . . . . 11 . . . . . . . . . . . . . . Kinetic 5303 | . 487 55 . 145 512 1823 94 . . . . . . . . . . . 658 425 539 189 . . . . . 328 . . 48 Thermal 7172 | . 252 . . . . 1596 1868 . . . . 620 227 951 . 405 521 . . 143 . 255 . . . . . . . 178 156 Explosive 15626 | . . . . . . . 122 . . . . . . . . . . 2091 . . . 347 361 409 7324 269 . 704 . 114 3885 Electromagnetic 429 | . . . . . . . . . . . . . . . . 429 . . . . . . . . . . . . . . . Impact 2889 | . . . . . . . 192 115 . . . . . . . . . 380 . . . . . . . . . 894 . . 1308 Slashing 11655 | . . . . . . . 153 224 271 . . 527 67 . . . 228 752 . . . 146 842 180 . . 123 3692 1763 617 2070 Piercing 814 | . . . . . . . . . . . . . . . . . . . . . . 647 . . . . . . . . 167 Phasic 1287 | . . . . . . . . . . . . . 33 165 . 132 726 231 . . . . . . . . . . . . . Highest Corruption 24 | . . 2 2 2 5 5 3 9 9 9 . 1 19 19 . 1 . . . . 4 6 8 8 9 9 . 1 3 3 24 Average Corruption 5 | . . 2 2 2 5 5 2 4 9 9 . 1 6 19 . 1 . . . . 3 6 6 8 8 9 . 1 2 2 9 Corruption Purged . | . . . . . . . . . . . . . . . . . . . . . . . . . . . . . . . . Corruption Blocked . | . . . . . . . . . . . . . . . . . . . . . . . . . . . . . . . . Effects 175 | . . 4 16 1 8 11 7 4 7 2 . 2 3 14 . 1 . . . . 2 5 8 6 26 5 . 2 2 2 37 Message Errors 39 | . . . 3 . 2 2 4 . 3 . . 1 . 2 . . . . . . 1 1 3 3 6 2 . . . . 6 Matter Fused 38 | . . 1 4 1 1 3 2 1 3 1 . . 1 4 . . . . . . . . 1 1 8 1 . . . 2 3 Heat Flow Errors 25 | . . 1 5 . 2 2 1 . . 1 . 1 . 1 . 1 . . . . . 1 . 1 5 . . . . . 3 Energy Discharges 13 | . . 2 1 . 1 1 . . . . . . . 1 . . . . . . . . . . 2 1 . . . . 4 Parts Rejected 3 | . . . . . . . . . . . . . . . . . . . . . . . . . 2 . . . . . 1 Parts Fused 1 | . . . . . . . . . . . . . . . . . . . . . . . 1 . . . . . . . . Data Loss (minor) 27 | . . . 2 . 1 1 . 2 1 . . . 2 . . . . . . . . 2 1 . 1 . . 1 1 . 12 Data Loss (major) 9 | . . . . . . . . 1 . . . . . 2 . . . . . . . 1 1 1 1 . . 1 . . 1 Misfires 4 | . . . . . . 1 . . . . . . . 2 . . . . . . . . . . . 1 . . . . . Alerts 4 | . . . 1 . . . . . . . . . . . . . . . . . . . 1 . 1 . . . 1 . . Misdirections 7 | . . . . . . . . . . . . . . 1 . . . . . . . . . . . . . . . . 6 Weapon Failures 5 | . . . . . 1 1 . . . . . . . 1 . . . . . . 1 . . . . . . . . . 1 Overload Shots . | . . . . . . . . . . . . . . . . . . . . . . . . . . . . . . . . Overflow Damage 3206 | . . . . . . . 191 17 . . . 133 . . . . . 591 . . . 291 119 27 69 . 83 1036 6 149 494 Projectiles 7 | . . . . . . . 7 . . . . . . . . . . . . . . . . . . . . . . . . Explosions 518 | . . . . . . . 5 . . . . . . . . . . 129 . . . 177 . . 69 . . 33 . . 105 Melee 2681 | . . . . . . . 179 17 . . . 133 . . . . . 462 . . . 114 119 27 . . 83 1003 6 149 389 Knockbacks 32 | . . . . . . 12 1 . . . . . . . . . . 2 1 . . . . . . . . 14 . . 2 Impact 12 | . . . . . . . 1 . . . . . . . . . . 1 . . . . . . . . . 8 . . 2 Kinetic 16 | . . . . . . 11 . . . . . . . . . . . . 1 . . . . . . . . 4 . . . Secondary 4 | . . . . . . 1 . . . . . . . . . . . 1 . . . . . . . . . 2 . . . Self-Inflicted Damage 689 | . . . . . . . 96 . . . . . . . . 5 5 . . . . 192 39 . . . . 23 . . 329 Shots 10 | . . . . . . . 1 . . . . . . . . 1 . . . . . 2 1 . . . . 2 . . 3 Rammed 1 | . . . . . . . . . . . . . . . . . 1 . . . . . . . . . . . . . . Targets Rammed 1 | . . . . . . . . . . . . . . . . . 1 . . . . . . . . . . . . . . Kicked . | . . . . . . . . . . . . . . . . . . . . . . . . . . . . . . . . Crushed . | . . . . . . . . . . . . . . . . . . . . . . . . . . . . . . . . Highest Temperature 368 | . 142 231 265 . 212 232 316 . . 192 . 98 32 91 . 64 169 . . . . 320 368 84 211 22 . 204 339 42 304 Average Temperature 68 | . 37 56 102 . 62 45 62 . . 98 . 57 19 47 . 44 98 . . . . 97 189 56 85 18 . 93 39 28 120 Received Heat Transfer 2666 | . 201 24 . . 279 624 306 . . . 6 117 30 36 . 54 111 54 9 36 12 45 9 18 . . . 584 37 4 70 Effects 1 | . . . . . . . . . . . . . . . . . . . . . . . 1 . . . . . . . . Interference 1 | . . . . . . . . . . . . . . . . . . . . . . . 1 . . . . . . . . Siege Activations . | . . . . . . . . . . . . . . . . . . . . . . . . . . . . . . . . Martial Activations . | . . . . . . . . . . . . . . . . . . . . . . . . . . . . . . . . Shielding Activations . | . . . . . . . . . . . . . . . . . . . . . . . . . . . . . . . . Robots Disrupted . | . . . . . . . . . . . . . . . . . . . . . . . . . . . . . . . . Combat Hostiles . | . . . . . . . . . . . . . . . . . . . . . . . . . . . . . . . . Robots Corrupted 10 | . . . . . . . . . . . . . . . . 2 . 1 . . . . . . . . . 4 . . 3 Combat Hostiles 8 | . . . . . . . . . . . . . . . . 2 . . . . . . . . . . . 3 . . 3 Parts Fried 10 | . . . . . . . 1 . . . . . . . . . . 2 . . . . . . . . . 5 . . 2 Impact Corruptions 23 | . . . . . . . 2 . . . . . . . . . . 6 . . . . . . . . . 10 . . 5 Robots Melted . | . . . . . . . . . . . . . . . . . . . . . . . . . . . . . . . . Combat Hostiles . | . . . . . . . . . . . . . . . . . . . . . . . . . . . . . . . . Parts Melted 20 | . 2 . . . . 3 12 . . . . . . . . . . . . . 2 . . . . . . . . 1 . Heat Transferred 11193 | . 888 . . . . 3330 3299 . . . . 725 296 1036 . 518 629 . . 185 . 137 . . . . . . . 50 100 Parts Sabotaged . | . . . . . . . . . . . . . . . . . . . . . . . . . . . . . . . . Parts Stolen 12 | . . . . . . . . 2 5 . . . . . . . . . . . . . 3 2 . . . . . . . Parts Stripped 11 | . . . . . . . . . . . . . . . . . . . . . . . . . . . . . . . 11 Power Chain Reactions . | . . . . . . . . . . . . . . . . . . . . . . . . . . . . . . . . Alert | -11 -10 -10 -10 -9 -8 -8 -7 -7 -7 -7 -6 -6 -6 -6 -6 -5 -5 -5 -5 -5 -5 -4 -4 -4 -4 -3 -3 -3 -2 -2 -2 ------- Run | Yrd Mat Min Exi Min Mat Sto Fac Low Low Zio Pro Fac Low Low Dat Pro Fac Ext Cet Arc Hub Fac Upp Upp War Pro Res Tes Res Qua Frg Maximum Alert Level 4 | . . . . . . 1 1 . . . . 2 . . . . 1 4 3 1 1 2 . . . . . 2 2 2 4 Low Security (%) 47 | 100 100 100 . 100 100 65 65 . . . . . . . . . . 37 . . 22 38 . . . . 100 32 . . . Level 1 26 | . . . . . . 34 34 . . . . 74 . . . . 100 4 . 100 77 40 . . . . . 18 68 16 19 Level 2 12 | . . . . . . . . . . . . 25 . . . . . 16 . . . 21 . . . . . 48 31 83 14 Level 3 9 | . . . . . . . . . . . . . . . . . . 23 100 . . . . . . . . . . . 43 Level 4 3 | . . . . . . . . . . . . . . . . . . 17 . . . . . . . . . . . . 22 Level 5 . | . . . . . . . . . . . . . . . . . . . . . . . . . . . . . . . . High Security . | . . . . . . . . . . . . . . . . . . . . . . . . . . . . . . . . Max Security . | . . . . . . . . . . . . . . . . . . . . . . . . . . . . . . . . Peak Influence 1454 | . 183 65 . 60 91 301 298 . . . . 688 . . . . 390 1454 822 374 379 452 . . . . 151 564 664 563 1270 Initial 806 | . . 45 . . . 8 127 . . . . 334 . . . . 272 177 806 280 120 159 . . . . . 74 310 370 310 Average 298 | . 57 15 . 16 49 138 172 . . . . 396 . . . . 313 584 755 326 246 254 . . . . 80 320 375 503 814 Influence Increases 12952 | . 402 110 . 75 211 950 696 170 . . 135 804 100 90 . 300 460 1915 215 144 407 683 120 110 805 35 172 1020 735 443 1645 Destroy 0b10 Robot/C 6200 | . 300 40 . 60 160 660 460 80 . . 80 160 80 40 . 160 80 880 140 80 160 180 100 100 680 20 . 440 200 20 840 Destroy 0b10 Robot/NC 460 | . 10 . . 5 5 85 25 . . . 10 30 . . . 10 20 55 10 5 35 15 . . 5 . 5 50 40 20 20 Destroy Leader 834 | . 62 10 . 10 40 140 102 10 . . . 46 10 20 . 10 38 84 . . 34 32 20 10 . . . 52 44 10 50 Allied During Kill 1162 | . . . . . 6 . 20 5 . . 45 42 10 . . . 25 639 37 6 129 15 . . . . . 16 70 . 97 Successful Hack 24 | . . . . . . 16 8 . . . . . . . . . . . . . . . . . . . . . . . . Disable Machine 570 | . . . . . . 30 30 . . . . 15 . . . . 15 . . 45 15 150 . . . . . 60 . 90 120 Anti-Garrison Action 200 | . . . . . . . . . . . . . . . . . . . . . . . . . . . . . . . 200 Destroy Structure 948 | . . . . . . 4 21 . . . . 11 . . . . 42 212 28 8 34 246 . . . . 6 102 66 75 93 Advance Influence 450 | . . . . . . . . . . . . 300 . . . . 150 . . . . . . . . . . . . . . Partial Spotted 195 | . . . . . . . . . . . . . . . . . 15 . . . . . . . . . 15 45 45 . 75 Lose Combat Pursuer 1365 | . 30 60 . . . 15 30 75 . . . . . 30 . 120 75 45 . . . 45 . . 120 15 . 255 270 30 150 Miscellaneous 544 | . . . . . . . . . . . . 200 . . . . . . . . . . . . . . 146 . . 198 . Influence Decreases 11821 | . 285 213 14 75 190 690 708 220 172 47 80 181 382 226 260 105 293 837 954 501 424 598 303 144 489 546 40 600 628 549 1067 Entered New Map 4491 | . . 72 14 . . 13 154 100 42 47 . 21 252 76 260 . 73 185 634 421 224 168 153 44 195 511 . 58 242 289 243 Time Decay 5230 | . 265 141 . 75 140 507 434 110 110 . 80 150 110 130 . 105 140 362 180 50 100 310 110 90 264 35 40 342 286 160 404 Search Patrol Dispatched 100 | . . . . . . . . . . . . . . . . . . . . . . . . . . . . . . 100 . Lost Part 930 | . 20 . . . 30 170 100 10 20 . . 10 . . . . 30 10 20 10 . 40 40 10 30 . . 120 . . 260 Lost Ally 1070 | . . . . . 20 . 20 . . . . . 20 20 . . 50 280 120 20 100 80 . . . . . 80 100 . 160 Squads Dispatched 58 | . 2 . . . 1 7 2 . . . . 2 . . . 1 6 2 . . 4 6 . . . . . 10 8 2 5 Investigation 11 | . 1 . . . . 1 . . . . . 1 . . . . . . . . . 1 . . . . . 2 2 2 1 Extermination 11 | . . . . . . . 1 . . . . 1 . . . . . . . . 1 2 . . . . . 1 4 . 1 Reinforcement 21 | . 1 . . . 1 1 1 . . . . . . . . . 6 2 . . 1 3 . . . . . 3 1 . 1 Assault 7 | . . . . . . 2 . . . . . . . . . 1 . . . . . . . . . . . 1 1 . 2 Garrison 8 | . . . . . . 3 . . . . . . . . . . . . . . 2 . . . . . . 3 . . . Intercept . | . . . . . . . . . . . . . . . . . . . . . . . . . . . . . . . . Searches Triggered 1 | . . . . . . . . . . . . . . . . . . . . . . . . . . . . . . 1 . Data Miner Redirects 2 | . . . . . . . . . . . . . . . . . . . . . . . . . . . . 1 . . 1 Construction Impeded 4 | . . . . . . . . . . . . . . . . . 1 2 . . . . . . . . . 1 . . . Haulers Reinforced 4 | . . . . . . . . . . . . . . . . . 2 . . . . 2 . . . . . . . . . Active Scanning Responses . | . . . . . . . . . . . . . . . . . . . . . . . . . . . . . . . . Cargo Convoy Interrupts . | . . . . . . . . . . . . . . . . . . . . . . . . . . . . . . . . Stealth | -11 -10 -10 -10 -9 -8 -8 -7 -7 -7 -7 -6 -6 -6 -6 -6 -5 -5 -5 -5 -5 -5 -4 -4 -4 -4 -3 -3 -3 -2 -2 -2 --------- Run | Yrd Mat Min Exi Min Mat Sto Fac Low Low Zio Pro Fac Low Low Dat Pro Fac Ext Cet Arc Hub Fac Upp Upp War Pro Res Tes Res Qua Frg Distress Signals 24 | . 4 . . . . 2 . . . . . . . . . . 1 4 1 . 1 1 . . 1 . . 4 4 . 1 Communications Jammed 18 | . . . . . . . . . . . . . . . . . . . . . . 2 2 . . . . . . . 14 Distress Signals 18 | . . . . . . . . . . . . . . . . . . . . . . 2 2 . . . . . . . 14 Times Spotted 615 | . 25 7 . 3 9 54 25 14 4 . 4 6 5 4 . 21 18 41 9 7 15 23 15 16 98 4 . 55 43 12 78 Peak Tracking Total 14 | . 7 2 . 1 3 11 6 4 4 . 3 3 4 2 . 7 8 10 5 2 4 4 7 6 14 3 . 8 13 3 11 Tactical Retreats 48 | . 2 2 . . . 1 2 2 . . . . . 2 . 4 3 3 . . . 2 . . 2 1 . 8 6 1 7 Traps | -11 -10 -10 -10 -9 -8 -8 -7 -7 -7 -7 -6 -6 -6 -6 -6 -5 -5 -5 -5 -5 -5 -4 -4 -4 -4 -3 -3 -3 -2 -2 -2 ------- Run | Yrd Mat Min Exi Min Mat Sto Fac Low Low Zio Pro Fac Low Low Dat Pro Fac Ext Cet Arc Hub Fac Upp Upp War Pro Res Tes Res Qua Frg Traps Triggered 24 | . 4 . . . . 3 . . . . . 3 . . . . . 6 . . 1 1 1 . . . . . 3 1 1 Indirectly . | . . . . . . . . . . . . . . . . . . . . . . . . . . . . . . . . Trap Hack Attempts . | . . . . . . . . . . . . . . . . . . . . . . . . . . . . . . . . Triggered . | . . . . . . . . . . . . . . . . . . . . . . . . . . . . . . . . Disarmed . | . . . . . . . . . . . . . . . . . . . . . . . . . . . . . . . . Reprogrammed . | . . . . . . . . . . . . . . . . . . . . . . . . . . . . . . . . Reused . | . . . . . . . . . . . . . . . . . . . . . . . . . . . . . . . . Traps Extracted . | . . . . . . . . . . . . . . . . . . . . . . . . . . . . . . . . Installed . | . . . . . . . . . . . . . . . . . . . . . . . . . . . . . . . . Triggered . | . . . . . . . . . . . . . . . . . . . . . . . . . . . . . . . . Machines | -11 -10 -10 -10 -9 -8 -8 -7 -7 -7 -7 -6 -6 -6 -6 -6 -5 -5 -5 -5 -5 -5 -4 -4 -4 -4 -3 -3 -3 -2 -2 -2 ---------- Run | Yrd Mat Min Exi Min Mat Sto Fac Low Low Zio Pro Fac Low Low Dat Pro Fac Ext Cet Arc Hub Fac Upp Upp War Pro Res Tes Res Qua Frg Machines Disabled 45 | . . . . . . 2 2 . . . . 1 . 1 . . 1 . . 3 1 10 . . 1 . . 5 . 6 12 Max in Single Turn 5 | . . . . . . 1 2 . . . . . . 1 . . . . . . 1 5 . . 1 . . 1 . 1 2 Garrison Access 1 | . . . . . . . . . . . . . . . . . . . . . . . . . . . . . . . 1 Network Hub 1 | . . . . . . . . . . . . . . . . . . . . . 1 . . . . . . . . . . Energy Cycler 2 | . . . . . . . . . . . . . . . . . . 2 . . . . . . . . . . . . . Machines Repaired . | . . . . . . . . . . . . . . . . . . . . . . . . . . . . . . . . Machines Dismantled . | . . . . . . . . . . . . . . . . . . . . . . . . . . . . . . . . Machines Sabotaged . | . . . . . . . . . . . . . . . . . . . . . . . . . . . . . . . . Overloaded Fab Kills . | . . . . . . . . . . . . . . . . . . . . . . . . . . . . . . . . Hacking | -11 -10 -10 -10 -9 -8 -8 -7 -7 -7 -7 -6 -6 -6 -6 -6 -5 -5 -5 -5 -5 -5 -4 -4 -4 -4 -3 -3 -3 -2 -2 -2 --------- Run | Yrd Mat Min Exi Min Mat Sto Fac Low Low Zio Pro Fac Low Low Dat Pro Fac Ext Cet Arc Hub Fac Upp Upp War Pro Res Tes Res Qua Frg Machines Accessed 26 | . 1 . 2 . . 6 1 . 2 . . . 1 1 3 . . . . . . . 1 1 1 . . 2 1 . 3 Terminals 8 | . . . . . . 6 1 . . . . . . . . . . . . . . . . . . . . . . . 1 Fabricators . | . . . . . . . . . . . . . . . . . . . . . . . . . . . . . . . . Repair Stations 5 | . 1 . . . . . . . . . . . . . . . . . . . . . . . . . . 2 1 . 1 Recycling Units . | . . . . . . . . . . . . . . . . . . . . . . . . . . . . . . . . Scanalyzers . | . . . . . . . . . . . . . . . . . . . . . . . . . . . . . . . . Garrison Access 1 | . . . . . . . . . . . . . . . . . . . . . . . . . . . . . . . 1 Total Hacks 58 | . 1 . 2 . . 8 2 . 6 . . . 1 1 23 . . . . . . . 1 1 1 . . 5 1 . 5 Successful 49 | . 1 . 2 . . 6 1 . 6 . . . 1 1 23 . . . . . . . 1 1 1 . . 2 1 . 2 Failed 9 | . . . . . . 2 1 . . . . . . . . . . . . . . . . . . . . 3 . . 3 Catastrophic 1 | . . . . . . 1 . . . . . . . . . . . . . . . . . . . . . . . . . Database Lockouts . | . . . . . . . . . . . . . . . . . . . . . . . . . . . . . . . . Manual 94 | . 1 . 1 . . 1 2 . . . . 11 . . . . 5 9 . . 6 17 . . 1 . . 13 11 13 3 Terminals 11 | . . . . . . 8 2 . . . . . . . . . . . . . . . . . . . . . . . 1 Fabricators . | . . . . . . . . . . . . . . . . . . . . . . . . . . . . . . . . Repair Stations 8 | . 1 . . . . . . . . . . . . . . . . . . . . . . . . . . 5 1 . 1 Recycling Units . | . . . . . . . . . . . . . . . . . . . . . . . . . . . . . . . . Scanalyzers . | . . . . . . . . . . . . . . . . . . . . . . . . . . . . . . . . Garrison Access 3 | . . . . . . . . . . . . . . . . . . . . . . . . . . . . . . . 3 Terminal Hacks 43 | . . . 2 . . 5 1 . 6 . . . 1 1 23 . . . . . . . 1 1 1 . . . . . 1 Record 12 | . . . 1 . . . . . 5 . . . . . 6 . . . . . . . . . . . . . . . . Part Schematic 11 | . . . . . . . . . . . . . . . 11 . . . . . . . . . . . . . . . . Robot Schematic 3 | . . . . . . . . . . . . . . . 3 . . . . . . . . . . . . . . . . Prototype ID Bank 3 | . . . . . . . . . . . . . . . 3 . . . . . . . . . . . . . . . . Open Door 10 | . . . . . . 4 . . 1 . . . 1 1 . . . . . . . . 1 1 1 . . . . . . Branch Access Points 1 | . . . . . . . 1 . . . . . . . . . . . . . . . . . . . . . . . . Alert Level 1 | . . . . . . 1 . . . . . . . . . . . . . . . . . . . . . . . . . Proto ID Catalog 2 | . . . 1 . . . . . . . . . . . . . . . . . . . . . . . . . . . 1 Fabricator Hacks . | . . . . . . . . . . . . . . . . . . . . . . . . . . . . . . . . Repair Station Hacks 1 | . 1 . . . . . . . . . . . . . . . . . . . . . . . . . . . . . . Refit 1 | . 1 . . . . . . . . . . . . . . . . . . . . . . . . . . . . . . Recycling Unit Hacks . | . . . . . . . . . . . . . . . . . . . . . . . . . . . . . . . . Scanalyzer . | . . . . . . . . . . . . . . . . . . . . . . . . . . . . . . . . Garrison Access Hacks . | . . . . . . . . . . . . . . . . . . . . . . . . . . . . . . . . Unauthorized Hacks 5 | . . . . . . 1 . . . . . . . . . . . . . . . . . . . . . 2 1 . 1 Terminals 1 | . . . . . . 1 . . . . . . . . . . . . . . . . . . . . . . . . . Assimilate 1 | . . . . . . 1 . . . . . . . . . . . . . . . . . . . . . . . . . Fabricators . | . . . . . . . . . . . . . . . . . . . . . . . . . . . . . . . . Repair Stations 3 | . . . . . . . . . . . . . . . . . . . . . . . . . . . . 2 1 . . Patch 3 | . . . . . . . . . . . . . . . . . . . . . . . . . . . . 2 1 . . Recycling Units . | . . . . . . . . . . . . . . . . . . . . . . . . . . . . . . . . Scanalyzers . | . . . . . . . . . . . . . . . . . . . . . . . . . . . . . . . . Garrison Access 1 | . . . . . . . . . . . . . . . . . . . . . . . . . . . . . . . 1 Jam 1 | . . . . . . . . . . . . . . . . . . . . . . . . . . . . . . . 1 Data Cores Recovered 3 | . . . . . . . . . . . . . . . . . . . . . 1 . . . . . . . 2 . . Used . | . . . . . . . . . . . . . . . . . . . . . . . . . . . . . . . . Hacking Detections 7 | . . . . . . 3 1 . . . . . . . . . . . . . . . . . . . . 1 . . 2 Full Trace Events 1 | . . . . . . 1 . . . . . . . . . . . . . . . . . . . . . . . . . Feedback Events . | . . . . . . . . . . . . . . . . . . . . . . . . . . . . . . . . Feedback Blocked . | . . . . . . . . . . . . . . . . . . . . . . . . . . . . . . . . Robot Schematics Acquired 13 | . . . . . . . . . . 3 . . . . 3 . . . . . . 3 . . . . . 2 . . 2 Robots Built . | . . . . . . . . . . . . . . . . . . . . . . . . . . . . . . . . Authchips . | . . . . . . . . . . . . . . . . . . . . . . . . . . . . . . . . Time . | . . . . . . . . . . . . . . . . . . . . . . . . . . . . . . . . Total Robot Build Rating . | . . . . . . . . . . . . . . . . . . . . . . . . . . . . . . . . Part Schematics Acquired 46 | . . . . . . . . . . 16 . . . . 11 . . . . . . . . . . . . 6 . 10 3 Parts Built . | . . . . . . . . . . . . . . . . . . . . . . . . . . . . . . . . Authchips . | . . . . . . . . . . . . . . . . . . . . . . . . . . . . . . . . Time . | . . . . . . . . . . . . . . . . . . . . . . . . . . . . . . . . Total Part Build Rating . | . . . . . . . . . . . . . . . . . . . . . . . . . . . . . . . . Part Studies Acquired . | . . . . . . . . . . . . . . . . . . . . . . . . . . . . . . . . Parts Repaired . | . . . . . . . . . . . . . . . . . . . . . . . . . . . . . . . . Time . | . . . . . . . . . . . . . . . . . . . . . . . . . . . . . . . . Parts Recycled . | . . . . . . . . . . . . . . . . . . . . . . . . . . . . . . . . Recycled Matter . | . . . . . . . . . . . . . . . . . . . . . . . . . . . . . . . . Retrieved Matter . | . . . . . . . . . . . . . . . . . . . . . . . . . . . . . . . . Retrieved Components . | . . . . . . . . . . . . . . . . . . . . . . . . . . . . . . . . Parts Scanalyzed . | . . . . . . . . . . . . . . . . . . . . . . . . . . . . . . . . Part Schematics Acquired . | . . . . . . . . . . . . . . . . . . . . . . . . . . . . . . . . Parts Damaged . | . . . . . . . . . . . . . . . . . . . . . . . . . . . . . . . . Bothacking | -11 -10 -10 -10 -9 -8 -8 -7 -7 -7 -7 -6 -6 -6 -6 -6 -5 -5 -5 -5 -5 -5 -4 -4 -4 -4 -3 -3 -3 -2 -2 -2 ------------ Run | Yrd Mat Min Exi Min Mat Sto Fac Low Low Zio Pro Fac Low Low Dat Pro Fac Ext Cet Arc Hub Fac Upp Upp War Pro Res Tes Res Qua Frg Used RIF Installer . | . . . . . . . . . . . . . . . . . . . . . . . . . . . . . . . . Robots Hacked . | . . . . . . . . . . . . . . . . . . . . . . . . . . . . . . . . Non-combat . | . . . . . . . . . . . . . . . . . . . . . . . . . . . . . . . . Combat . | . . . . . . . . . . . . . . . . . . . . . . . . . . . . . . . . Robot Hacks Applied . | . . . . . . . . . . . . . . . . . . . . . . . . . . . . . . . . Relay Couplers Released . | . . . . . . . . . . . . . . . . . . . . . . . . . . . . . . . . Fabnet Peak Effective % . | . . . . . . . . . . . . . . . . . . . . . . . . . . . . . . . . Robots Rewired 13 | . . . . . . . . . . . . . . . . . . 12 . . 1 . . . . . . . . . . Allies Hacked 1 | . . . . . . . . . . . . 1 . . . . . . . . . . . . . . . . . . . Hacks Repelled . | . . . . . . . . . . . . . . . . . . . . . . . . . . . . . . . . Allies | -11 -10 -10 -10 -9 -8 -8 -7 -7 -7 -7 -6 -6 -6 -6 -6 -5 -5 -5 -5 -5 -5 -4 -4 -4 -4 -3 -3 -3 -2 -2 -2 -------- Run | Yrd Mat Min Exi Min Mat Sto Fac Low Low Zio Pro Fac Low Low Dat Pro Fac Ext Cet Arc Hub Fac Upp Upp War Pro Res Tes Res Qua Frg Total Allies 81 | . . . . 1 . 3 3 . . 6 . 3 . . . . 7 25 . . 10 3 . . . . . 4 7 . 9 Largest Group 12 | . . . . 1 1 3 3 1 . 6 6 3 2 1 . . 4 12 8 2 9 3 . . . . . 4 7 . 4 Highest-Rated Group 489 | . . . . 31 31 72 87 29 . 217 217 199 170 85 . . 249 489 291 73 365 206 . . . . . 200 304 . 276 Highest-Rated Ally 110 | . . . . 31 31 31 29 29 . 42 42 85 85 85 . . 81 70 70 39 85 103 . . . . . 50 50 . 110 Zionite Dispatches 15 | . . . . . . . . . . . . 2 . . . . 2 4 . . 3 2 . . . . . . 2 . . Heavy 2 | . . . . . . . . . . . . 1 . . . . . . . . . 1 . . . . . . . . . Light 2 | . . . . . . . . . . . . . . . . . . 2 . . . . . . . . . . . . . Fire 2 | . . . . . . . . . . . . . . . . . . 1 . . 1 . . . . . . . . . . Hacker 3 | . . . . . . . . . . . . . . . . . 1 . . . 2 . . . . . . . . . . Demo 1 | . . . . . . . . . . . . . . . . . . . . . . 1 . . . . . . . . . Explosive Resupply 1 | . . . . . . . . . . . . . . . . . . . . . . . . . . . . . 1 . . Melee Resupply 2 | . . . . . . . . . . . . . . . . . . 1 . . . . . . . . . . 1 . . Offense Resupply 1 | . . . . . . . . . . . . 1 . . . . . . . . . . . . . . . . . . . Infowar Resupply 1 | . . . . . . . . . . . . . . . . . 1 . . . . . . . . . . . . . . Total Orders 6 | . . . . . . . . . . . . 1 . . . . 1 1 . . . . . . . . . . 3 . . STAY 1 | . . . . . . . . . . . . . . . . . . . . . . . . . . . . . 1 . . DROP 5 | . . . . . . . . . . . . 1 . . . . 1 1 . . . . . . . . . . 2 . . Ally Attacks 560 | . . . . . 13 7 17 7 . . 38 12 3 2 . . 18 205 36 17 57 13 . . . . . 18 31 . 66 Total Damage 13285 | . . . . . 126 149 208 38 . . 609 639 252 159 . . 843 3667 636 250 779 413 . . . . . 418 1541 . 2558 Kills 99 | . . . . . 2 . 3 1 . . 6 6 2 . . . 5 33 5 4 10 2 . . . . . 2 9 . 9 Allies Corrupted 2 | . . . . . . . . . . . . . . . . . . . . . . . . . . . . . . . 2 Allies Melted 2 | . . . . . . . . . . . . . . . . . . . . . . . . . . . . . . . 2 X0-1V1 Amusement Gains 475 | . 16 20 . . 10 10 . . . . . 5 . 5 . . 10 50 . . . 44 8 . 114 . . 84 20 24 55 Good Acts 143 | . . 1 . 2 2 8 6 4 1 . . 1 1 6 . 5 6 7 2 1 4 6 1 . 5 . 2 20 12 6 34 Bad Acts 101 | . . 1 . . 1 7 4 3 . . 2 5 6 . . . 4 4 2 2 . 9 4 6 10 . 2 10 4 6 9 Intel | -11 -10 -10 -10 -9 -8 -8 -7 -7 -7 -7 -6 -6 -6 -6 -6 -5 -5 -5 -5 -5 -5 -4 -4 -4 -4 -3 -3 -3 -2 -2 -2 ------- Run | Yrd Mat Min Exi Min Mat Sto Fac Low Low Zio Pro Fac Low Low Dat Pro Fac Ext Cet Arc Hub Fac Upp Upp War Pro Res Tes Res Qua Frg Active Infowar (turns) 8725 | . . . . . . . 30 . 117 553 187 302 239 278 40 221 283 824 360 107 218 671 227 186 973 175 81 773 631 331 918 Optics 8595 | . . . . . . . . . 24 553 187 302 239 278 40 221 283 824 360 107 218 671 227 186 973 175 81 773 631 331 911 Sensors 1743 | . . . . . . . . . 114 . . 299 38 . . . . . . . . 1 128 . . . . 83 545 331 204 Cloaking 1111 | . . . . . . . 30 . . . . 210 . . . . . . . . 110 . . . . . . . 47 283 431 Jamming 2087 | . . . . . . . . . . . . . . . . . . . . . . 258 227 186 756 . . . . . 660 ECM 2 | . . . . . . . . . . . . . . . . . . . . . . . . . . . . 2 . . . Robot Analysis Total . | . . . . . . . . . . . . . . . . . . . . . . . . . . . . . . . . Derelict Logs Recovered 12 | . . 1 . 1 . . . . 1 2 2 . . 1 . 1 . . . . . . 1 2 . . . . . . . Drone Launches . | . . . . . . . . . . . . . . . . . . . . . . . . . . . . . . . . Drone Recoveries . | . . . . . . . . . . . . . . . . . . . . . . . . . . . . . . . . Zionite Intel Received 8 | . . . . . . . . . . . . 1 . . . . . . . . . 2 . . . . . 2 . 3 . Branch Access 1 | . . . . . . . . . . . . . . . . . . . . . . 1 . . . . . . . . . Component Stockpiles 1 | . . . . . . . . . . . . . . . . . . . . . . . . . . . . 1 . . . Prototype Stockpiles 1 | . . . . . . . . . . . . 1 . . . . . . . . . . . . . . . . . . . Prototype Schematics 1 | . . . . . . . . . . . . . . . . . . . . . . . . . . . . . . 1 . Unaware Schematics 1 | . . . . . . . . . . . . . . . . . . . . . . 1 . . . . . . . . . Unaware Analyses 1 | . . . . . . . . . . . . . . . . . . . . . . . . . . . . . . 1 . Active Terminals 1 | . . . . . . . . . . . . . . . . . . . . . . . . . . . . . . 1 . Active Garrisons 1 | . . . . . . . . . . . . . . . . . . . . . . . . . . . . 1 . . . Exploration | -11 -10 -10 -10 -9 -8 -8 -7 -7 -7 -7 -6 -6 -6 -6 -6 -5 -5 -5 -5 -5 -5 -4 -4 -4 -4 -3 -3 -3 -2 -2 -2 ------------- Run | Yrd Mat Min Exi Min Mat Sto Fac Low Low Zio Pro Fac Low Low Dat Pro Fac Ext Cet Arc Hub Fac Upp Upp War Pro Res Tes Res Qua Frg Turns Passed 15658 | 91 1144 508 1477 287 331 1661 1061 235 229 553 187 302 239 278 40 221 283 824 360 107 218 684 227 186 973 175 81 773 631 331 961 Spaces Moved 16895 | 54 525 293 711 167 119 685 577 416 437 996 420 502 337 408 83 342 302 809 362 120 255 841 393 442 1349 416 188 1081 1166 689 1410 Core 332 | 3 . 162 167 . . . . . . . . . . . . . . . . . . . . . . . . . . . . Treads 1751 | 51 525 131 544 3 . 301 196 . . . . . . . . . . . . . . . . . . . . . . . . Legs 469 | . . . . . 82 384 3 . . . . . . . . . . . . . . . . . . . . . . . . Wheels 234 | . . . . 164 37 . 33 . . . . . . . . . . . . . . . . . . . . . . . . Hover 14109 | . . . . . . . 345 416 437 996 420 502 337 408 83 342 302 809 362 120 255 841 393 442 1349 416 188 1081 1166 689 1410 Flight . | . . . . . . . . . . . . . . . . . . . . . . . . . . . . . . . . Fastest Speed 26 | 50 160 50 50 140 140 120 38 38 38 38 38 36 47 47 47 47 48 48 56 58 58 26 30 34 30 39 36 33 27 26 27 Average Speed 66 | 153 174 134 206 143 182 176 128 38 38 38 38 38 47 47 47 53 52 56 60 59 58 51 31 34 36 39 36 42 38 37 44 Slowest Speed 470 | 160 240 240 320 320 330 260 470 38 240 38 38 47 47 47 47 61 56 129 123 123 58 124 100 34 131 39 36 150 44 40 260 Overloaded Moves 285 | . . . . . . . . . . . . . . . . . . . . . . 32 1 . 36 . . 5 75 15 121 Propulsion Burnouts . | . . . . . . . . . . . . . . . . . . . . . . . . . . . . . . . . Robots Hopped . | . . . . . . . . . . . . . . . . . . . . . . . . . . . . . . . . Potential Cave-ins 11 | . . . . . . . 4 . . . . . . . . . . . . . . 3 . . 4 . . . . . . Cave-ins Triggered . | . . . . . . . . . . . . . . . . . . . . . . . . . . . . . . . . Exploration Rate (%) 54 | 3 81 51 90 34 10 89 21 55 66 90 45 20 56 59 78 56 11 79 82 79 41 27 54 73 89 61 6 92 38 75 35 Regions Visited 31 Branch Regions 23 Pre-discovered Areas 7 | . . . 1 . . . . . 1 2 1 . . . 1 . . . . . . . 1 . . . . . . . . Known Exits Taken 14 | . . . . 1 1 . 1 1 . . 1 . . 1 . 1 . 1 . . . 1 . 1 1 . . 1 1 1 . Unknown Exits Taken 17 | 1 1 1 1 . . 1 . . 1 1 . 1 1 . 1 . 1 . 1 1 1 . 1 . . 1 1 . . . . Scrap Searched 25 | . . 1 . . . . . 4 5 4 2 . 2 1 . 1 . . . . . . 2 1 . 2 . . . . . Spaces Dug 106 | . . . . . . . 8 2 . . . 4 1 4 . 2 4 . . . . 21 . . . 1 3 17 22 6 11 Terrain Destroyed 859 | . . . . . . . 28 2 . . . 5 6 14 . 11 15 125 2 3 8 138 73 44 143 70 3 52 22 25 70 Melee 85 | . . . . . . . 8 2 . . . 4 . . . . 1 . . . . 10 . . . 1 3 17 22 6 11 Projectile 83 | . . . . . . . . . . . . 1 6 14 . 11 14 2 2 3 8 22 . . . . . . . . . AOE 675 | . . . . . . . 20 . . . . . . . . . . 123 . . . 106 73 44 143 69 . 19 . 19 59 Terrain Rammed . | . . . . . . . . . . . . . . . . . . . . . . . . . . . . . . . . Walls Destroyed . | . . . . . . . . . . . . . . . . . . . . . . . . . . . . . . . . Machines Disabled . | . . . . . . . . . . . . . . . . . . . . . . . . . . . . . . . . Actions | -11 -10 -10 -10 -9 -8 -8 -7 -7 -7 -7 -6 -6 -6 -6 -6 -5 -5 -5 -5 -5 -5 -4 -4 -4 -4 -3 -3 -3 -2 -2 -2 --------- Run | Yrd Mat Min Exi Min Mat Sto Fac Low Low Zio Pro Fac Low Low Dat Pro Fac Ext Cet Arc Hub Fac Upp Upp War Pro Res Tes Res Qua Frg Total 20278 | 59 654 393 722 187 174 919 768 469 489 1170 446 597 409 471 83 366 375 1142 487 135 298 1024 464 466 1829 425 195 1313 1320 743 1686 Wait 1313 | . 48 94 . . . 18 56 23 10 168 24 52 57 39 . 3 7 96 82 . 10 42 35 . 357 . . 33 34 6 19 Move 16864 | 53 524 292 710 166 118 684 576 415 436 995 419 501 336 407 82 341 301 808 361 119 254 840 392 441 1348 415 187 1080 1165 688 1410 Hop . | . . . . . . . . . . . . . . . . . . . . . . . . . . . . . . . . Pick Up 229 | . 17 . 5 2 8 30 13 6 9 3 1 10 3 2 . 4 7 7 1 . 2 5 3 1 19 . 1 19 14 6 31 Fast Attach 234 | 6 5 1 . 1 6 20 8 2 10 . 1 5 3 3 . 1 5 11 10 4 2 31 2 9 17 . . 25 14 2 30 Attach 130 | . 3 . 3 3 3 19 17 1 2 . . 3 . 1 1 4 5 5 3 . 1 6 2 1 10 . 2 9 3 1 22 Detach 37 | . . . 1 . . 3 6 1 . . . . . . . 1 1 3 3 . . 4 1 2 3 1 1 . 1 . 5 Swap 107 | . 3 . 1 . 7 9 7 1 . . . 2 1 1 . 1 3 4 2 . 1 3 3 . 11 1 . 10 7 9 20 Drop 338 | . 1 . . . 3 34 19 5 14 3 1 14 5 6 . 1 7 16 10 3 4 31 4 5 36 . . 31 26 8 51 Fire 479 | . 53 6 . 15 29 102 53 . . . . . 3 12 . 10 30 21 15 9 12 27 3 3 28 7 . 17 . 1 23 Melee 346 | . . . . . . . 13 15 8 1 . 10 1 . . . 8 19 . . . 22 19 4 . 1 4 81 45 20 75 Ram 1 | . . . . . . . . . . . . . . . . . 1 . . . . . . . . . . . . . . Kick . | . . . . . . . . . . . . . . . . . . . . . . . . . . . . . . . . Crush . | . . . . . . . . . . . . . . . . . . . . . . . . . . . . . . . . Escape Stasis 77 | . . . . . . . . . . . . . . . . . . 51 . . . 13 . . . . . 1 10 2 . Rewire 123 | . . . 2 . . . . . . . . . . . . . . 101 . . 12 . . . . . . 7 1 . . Trap . | . . . . . . . . . . . . . . . . . . . . . . . . . . . . . . . . Miscellaneous . | . . . . . . . . . . . . . . . . . . . . . . . . . . . . . . . . Route ------- -11/Scrapyard -10/Materials (discovered 4 exits: [*Mat x2] / [*Min] / [*Sub]) -10/Mines (discovered 2 exits: [*Mat] / *Exi) -10/Exiles -9/Mines -8/Materials -8/Storage (discovered 2 exits: *Fac / Rec) -7/Factory (discovered 4 exits: *Fac x2 / *Low x2) -7/Lower Caves -7/Lower Caves (discovered 2 exits: *Fac / [*Zio]) -7/Zion -6/Proximity Caves -6/Factory (discovered 2 exits: *Fac / *Low) -6/Lower Caves -6/Lower Caves -6/Data Miner -5/Proximity Caves -5/Factory -5/Extension (discovered 3 exits: *Fac x2 / *Cet) -5/Cetus -5/Archives (discovered 3 exits: *Fac / *Hub x2) -5/Hub_04(d) -4/Factory (discovered 4 exits: [*Res] / *Upp x2 / Arm) -4/Upper Caves -4/Upper Caves (discovered 2 exits: [*Res] / *War) -4/Warlord -3/Proximity Caves -3/Research (discovered 3 exits: Res x2 / *Tes) -3/Testing -2/Research (discovered 2 exits: *Acc / *Qua) -2/Quarantine (discovered 2 exits: [*Sec] / *Frg) -2/Protoforge (discovered 1 exit: *Acc) History --------- Turn | Location | Event 28 | -11/Scrapyard | Discovered new exit (range 14) 92 | -11/Scrapyard | Entered Materials 316 | -10/Materials | Build established: Mutant 584 | -10/Materials | Discovered new exit (range 16) 661 | -10/Materials | Discovered new exit (range 14) 1106 | -10/Materials | Discovered new exit (range 10) 1130 | -10/Materials | Prayed at D.C.S.S. Altar Unit 1176 | -10/Materials | Discovered new exit (range 16) 1236 | -10/Materials | Entered Mines 1279 | -10/Mines | Met a Derelict bent on vengeance 1531 | -10/Mines | Discovered new exit (range 10) 1561 | -10/Mines | Assembled infested the area 1568 | -10/Mines | Released all parts (3) 1577 | -10/Mines | Energy generation permanently improved by X0-1V1 (+10; -100 max core) 1598 | -10/Mines | Lost 4 parts (1p2n1w) 1610 | -10/Mines | Deemed a non-threat by the Exiles lab entrance 1613 | -10/Mines | Discovered new exit (range 5) 1744 | -10/Mines | Entered Exiles 1758 | -10/Exiles | Met 8R-AWN 1766 | -10/Exiles | Met EX-HEX 1781 | -10/Exiles | Met EX-BIN 1790 | -10/Exiles | Met EX-DEC 1793 | -10/Exiles | Learned location of Zion (-7) 1809 | -10/Exiles | Aligned with FarCom system 1809 | -10/Exiles | Given EX-Vault access code 1822 | -10/Exiles | Opened EX-Vault 1849 | -10/Exiles | Warned to stay clear of 0b10 Research branches 2184 | -10/Exiles | Found AWS/Thermal 2194 | -10/Exiles | Found AWS/Autocannon 2198 | -10/Exiles | Found Cloak of Protection 2394 | -10/Exiles | Visited The Gauntlet 3195 | -10/Exiles | Discovered new exit (range 10) 3221 | -10/Exiles | Stole three prototypes: Cloak of Protection, AWS/Thermal, AWS/Autocannon 3221 | -10/Exiles | Entered Mines 3297 | -9/Mines | Identified exit to Materials 3335 | -9/Mines | Core integrity permanently improved by X0-1V1 (+400) 3493 | -9/Mines | Escorted by a lone wolf Derelict 3508 | -9/Mines | Entered Materials 3508 | -8/Materials | Accompanied by 1 ally 3508 | -8/Materials | Evolved 4 slots: Propulsion x2, Utility x1, Weapon x1 3509 | -8/Materials | Identified exit to Storage 3780 | -8/Materials | Matter capacity permanently improved by X0-1V1 (+600; -300 max core) 3820 | -8/Materials | X0-1V1 foreshadows a heat wave 3839 | -8/Materials | Entered Storage 3841 | -8/Storage | FarCom data flow suspended 3910 | -8/Storage | Lost 3 parts (1p2n) 4036 | -8/Storage | X0-1V1 whisked you away to safety 4037 | -8/Storage | Discovered new exit (range 12) 4143 | -8/Storage | Build established: Scavenger-Gunner 4202 | -8/Storage | Lost 3 parts (1n2w) 4210 | -8/Storage | X0-1V1 activates XOMVISION 4453 | -8/Storage | Met a pair of Derelict thieves 4462 | -8/Storage | Identified exit to Recycling 4462 | -8/Storage | X0-1V1 revealed exit location to -8/Recycling 4620 | -8/Storage | X0-1V1 upgraded hostiles (x1) 4664 | -8/Storage | Lost 6 parts (1p3n1u1w) 4675 | -8/Storage | Destroyed 9 combat bots 4696 | -8/Storage | X0-1V1 sent you into danger 4703 | -8/Storage | Core integrity fell below 50% 4921 | -8/Storage | Garrison activated, responded to threat 4945 | -8/Storage | Lost 3 parts (1p2n) 5423 | -8/Storage | X0-1V1 redirected Transport squads to designated parking area 5500 | -8/Storage | Entered Factory 5500 | -7/Factory | Evolved 2 slots: Propulsion x1, Utility x1 5774 | -7/Factory | Discovered new exit (range 15) 5847 | -7/Factory | X0-1V1 sent you into danger 5972 | -7/Factory | Lost 4 parts (3n1u) 6400 | -7/Factory | X0-1V1 sent you to a vault 6413 | -7/Factory | Discovered new exit (range 7) 6438 | -7/Factory | Identified exit to Factory 6438 | -7/Factory | X0-1V1 revealed exit location to -6/Factory 6488 | -7/Factory | Identified exit to Lower Caves 6535 | -7/Factory | X0-1V1 redirected Transport squads to designated parking area 6561 | -7/Factory | Entered Lower Caves 6561 | -7/Lower Caves | Accompanied by 1 ally 6563 | -7/Lower Caves | Encountered a Master Thief 6571 | -7/Lower Caves | Prc. Rocket Launcher stolen by Master Thief 6621 | -7/Lower Caves | Build established: Mutant 6640 | -7/Lower Caves | X0-1V1 activates XOMVISION 6670 | -7/Lower Caves | Identified exit to Lower Caves 6670 | -7/Lower Caves | X0-1V1 revealed exit location to -7/Lower Caves 6707 | -7/Lower Caves | Encountered a Warlord checkpoint 6796 | -7/Lower Caves | Entered another Lower Caves area 6812 | -7/Lower Caves | Discovered exit to Factory (range 7) 6857 | -7/Lower Caves | Learned Factory emergency access door positions 6871 | -7/Lower Caves | Core integrity restored by X0-1V1 (+175) 6903 | -7/Lower Caves | Entered an active Warlord outpost 6914 | -7/Lower Caves | Learned Armory trap positions 6914 | -7/Lower Caves | Learned Extension stockpile data 6914 | -7/Lower Caves | Learned Extension emergency access door positions 6914 | -7/Lower Caves | Learned Factory garrison access intel 6922 | -7/Lower Caves | Destroyed DX-0MR(g) 6961 | -7/Lower Caves | Encountered a Master Thief 6962 | -7/Lower Caves | Encountered a Master Thief 6962 | -7/Lower Caves | Encountered a Master Thief 6965 | -7/Lower Caves | Adv. Cooling System stolen by Master Thief 6967 | -7/Lower Caves | Encountered a Master Thief 6968 | -7/Lower Caves | Mic. Nuclear Core stolen by Master Thief 6972 | -7/Lower Caves | Power Maul stolen by Master Thief 7017 | -7/Lower Caves | Discovered new exit (range 15) 7025 | -7/Lower Caves | Entered Zion 7060 | -7/Zion | Discovered new exit (range 12) 7069 | -7/Zion | System corruption cleaned by Quarantine Array 7092 | -7/Zion | Learned Factory non-interactive machine intel 7130 | -7/Zion | Gained Derelict followers 7156 | -7/Zion | Learned Factory emergency access door positions 7159 | -7/Zion | Learned location of Warlord (-4) 7307 | -7/Zion | Met Imprinter 7314 | -7/Zion | Imprinted 7316 | -7/Zion | Declared Zion's savior 7397 | -7/Zion | Found GAL Module 7578 | -7/Zion | Entered Proximity Caves 7578 | -6/Proximity Caves | Accompanied by 6 allies 7615 | -6/Proximity Caves | Attracted the attention of an 0b10 checkpoint 7625 | -6/Proximity Caves | X0-1V1 mutated your Utility slot to Weapon slot 7647 | -6/Proximity Caves | Spotter reported a threat 7649 | -6/Proximity Caves | Spotter reported a threat 7683 | -6/Proximity Caves | Enh. Optical Array reconfigured into Item Mimic 7732 | -6/Proximity Caves | Learned Factory emergency access door positions 7758 | -6/Proximity Caves | Learned location of Extension (-5) 7760 | -6/Proximity Caves | Discovered exit to Factory (range 10) 7765 | -6/Proximity Caves | Entered Factory 7765 | -6/Factory | Evolved 2 slots: Utility x2 7767 | -6/Factory | Loaded intel: 198 non-interactive machine locations 7768 | -6/Factory | Loaded intel: 4 garrison access locations 7772 | -6/Factory | X0-1V1 vaporized surrounding terrain (radius 24) 7848 | -6/Factory | Discovered new exit (range 13) 7888 | -6/Factory | Retrieved Zion intel report: Prototype Stockpiles 7889 | -6/Factory | Zion Heavy squad teleported in 7908 | -6/Factory | X0-1V1 vaporized surrounding terrain (radius 20) 7910 | -6/Factory | Discovered new exit (range 17) 7958 | -6/Factory | Zion Offense Resupply teleported in 7967 | -6/Factory | Found Launcher Loader 7991 | -6/Factory | X0-1V1 added 0b10 threat records associated with you (considerable) 8067 | -6/Factory | Entered Lower Caves 8067 | -6/Lower Caves | Accompanied by 2 allies 8094 | -6/Lower Caves | Found Prototype Protection 8094 | -6/Lower Caves | Identified Zio. Weapon Casing 8145 | -6/Lower Caves | X0-1V1 activates XOMVISION 8248 | -6/Lower Caves | System corruption reached 10% 8253 | -6/Lower Caves | Discovered new exit (range 8) 8306 | -6/Lower Caves | Entered another Lower Caves area 8306 | -6/Lower Caves | Accompanied by 1 ally 8307 | -6/Lower Caves | Encountered a Warlord checkpoint 8351 | -6/Lower Caves | Spotted B-75 Beast 8394 | -6/Lower Caves | Build established: Messiah-Gunner 8404 | -6/Lower Caves | X0-1V1 activates XOMVISION 8441 | -6/Lower Caves | Destroyed B-75 Beast 8453 | -6/Lower Caves | Identified exit to Data Miner 8453 | -6/Lower Caves | X0-1V1 revealed exit location to -6/Data Miner 8475 | -6/Lower Caves | Acquired the password to a Derelict Tinkerer's latest research 8477 | -6/Lower Caves | X0-1V1 opened Sealed Blast Doors 8581 | -6/Lower Caves | Learned Factory stockpile data 8584 | -6/Lower Caves | Entered Data Miner 8584 | -6/Data Miner | Discovered new exit (range 6) 8588 | -6/Data Miner | Met Data Miner 8604 | -6/Data Miner | Learned location of Section 7 (-2) 8604 | -6/Data Miner | Acquired the access code to Warlord's prototype stash 8613 | -6/Data Miner | Received God Mode back door access code from Data Miner 8624 | -6/Data Miner | Entered Proximity Caves 8639 | -5/Proximity Caves | Spotter reported a threat 8690 | -5/Proximity Caves | Destroyed 7 combat bots 8716 | -5/Proximity Caves | Identified exit to Factory 8716 | -5/Proximity Caves | X0-1V1 revealed exit location to -5/Factory 8739 | -5/Proximity Caves | Attracted the attention of an 0b10 outpost 8791 | -5/Proximity Caves | X0-1V1 activates XOMVISION 8845 | -5/Proximity Caves | Entered Factory 8845 | -5/Factory | Evolved 2 slots: Propulsion x1, Utility x1 8885 | -5/Factory | Spotted B-75 Beast 8913 | -5/Factory | Zion Hacker squad teleported in 8923 | -5/Factory | Weapon slot count temporarily expanded by X0-1V1 (+4) 8925 | -5/Factory | X0-1V1 upgraded ally (x3) 8925 | -5/Factory | Allies destroyed B-75 Beast 8941 | -5/Factory | Zion Infowar Resupply teleported in 8954 | -5/Factory | Lost 3 parts (1n1u1w) 9068 | -5/Factory | X0-1V1 announced a LAN party 9123 | -5/Factory | Discovered new exit (range 10) 9128 | -5/Factory | Entered Extension 9158 | -5/Extension | Rescued a captive Derelict 9172 | -5/Extension | Zion Melee Resupply teleported in 9230 | -5/Extension | X0-1V1 destroyed Energy Cycler 9230 | -5/Extension | Energy Cycler disabled 9230 | -5/Extension | Rescued a captive Derelict 9230 | -5/Extension | Rescued a captive Derelict 9230 | -5/Extension | Rescued a captive Derelict 9230 | -5/Extension | Rescued a captive Derelict 9233 | -5/Extension | Rescued a captive Derelict 9238 | -5/Extension | Rescued a captive Derelict 9240 | -5/Extension | Rescued a captive Derelict 9242 | -5/Extension | Rescued a captive Derelict 9278 | -5/Extension | Disrupted transfer network 9330 | -5/Extension | Zion Fire squad teleported in 9348 | -5/Extension | X0-1V1 sent you into danger 9423 | -5/Extension | Found Smartbomb Launcher 9433 | -5/Extension | Spotted B-75 Beast 9471 | -5/Extension | Destroyed 7 combat bots 9493 | -5/Extension | Allies destroyed B-75 Beast 9509 | -5/Extension | Discovered new exit (range 19) 9510 | -5/Extension | Spotted B-75 Beast 9564 | -5/Extension | X0-1V1 activates XOMVISION 9601 | -5/Extension | Zion Light squad teleported in 9619 | -5/Extension | Identified exit to Cetus 9619 | -5/Extension | X0-1V1 revealed exit location to -5/Cetus 9809 | -5/Extension | Zion Light squad teleported in 9843 | -5/Extension | Lost 4 allies 9899 | -5/Extension | Discovered new exit (range 10) 9912 | -5/Extension | Lost 3 allies 9925 | -5/Extension | Build established: Commander-Gladiator 9952 | -5/Extension | Entered Cetus 9952 | -5/Cetus | Accompanied by 8 allies 9962 | -5/Cetus | Spotted Cetus Guard 9962 | -5/Cetus | Spotted Cetus Guard 9967 | -5/Cetus | Spotted Cetus Guard 9971 | -5/Cetus | Destroyed Cetus Guard 9973 | -5/Cetus | Spotted Cetus Guard 9999 | -5/Cetus | Allies destroyed Cetus Guard 10004 | -5/Cetus | Allies destroyed Cetus Guard 10027 | -5/Cetus | Lost 5 allies 10030 | -5/Cetus | X0-1V1 opened Sealed Heavy Doors 10070 | -5/Cetus | Discovered new exit (range 21) 10105 | -5/Cetus | X0-1V1 tapped a No Entrance sign 10122 | -5/Cetus | Spotted Cetus Guard 10122 | -5/Cetus | Spotted Cetus Guard 10125 | -5/Cetus | Spotted Cetus Guard 10125 | -5/Cetus | Spotted Cetus Guard 10131 | -5/Cetus | Destroyed Cetus Guard 10134 | -5/Cetus | Destroyed Cetus Guard 10137 | -5/Cetus | Allies destroyed Cetus Guard 10162 | -5/Cetus | Allies destroyed Cetus Guard 10174 | -5/Cetus | Scared off Revision 17 10231 | -5/Cetus | X0-1V1 vaporized surrounding terrain (radius 19) 10312 | -5/Cetus | Entered Archives 10312 | -5/Archives | Accompanied by 2 allies 10361 | -5/Archives | Discovered new exit (range 11) 10376 | -5/Archives | Discovered new exit (range 18) 10376 | -5/Archives | Discovered new exit (range 22) 10419 | -5/Archives | Entered Hub_04(d) 10419 | -5/Hub_04(d) | Spotted B-75 Beast 10435 | -5/Hub_04(d) | Zion Fire squad teleported in 10450 | -5/Hub_04(d) | Rewired B-75 Beast 10454 | -5/Hub_04(d) | X0-1V1 destroyed Network Hub 10454 | -5/Hub_04(d) | Network Hub disabled 10460 | -5/Hub_04(d) | Zion Hacker squad teleported in 10467 | -5/Hub_04(d) | Garrison activated, responded to threat 10595 | -5/Hub_04(d) | Discovered new exit (range 4) 10595 | -5/Hub_04(d) | Spotted Lightning 10598 | -5/Hub_04(d) | Zion Hacker squad teleported in 10599 | -5/Hub_04(d) | Spotted Lightning 10600 | -5/Hub_04(d) | Spotted Lightning 10607 | -5/Hub_04(d) | Destroyed Lightning 10615 | -5/Hub_04(d) | Allies destroyed Lightning 10625 | -5/Hub_04(d) | Destroyed Lightning 10626 | -5/Hub_04(d) | Build established: Scavenger-Gunner 10631 | -5/Hub_04(d) | Found Prototype Device 10632 | -5/Hub_04(d) | Spotted Lightning 10633 | -5/Hub_04(d) | Spotted Lightning 10634 | -5/Hub_04(d) | Spotted Lightning 10634 | -5/Hub_04(d) | Spotted Lightning 10637 | -5/Hub_04(d) | Entered Factory 10637 | -4/Factory | Accompanied by 3 allies 10637 | -4/Factory | Evolved 2 slots: Propulsion x1, Utility x1 10649 | -4/Factory | Identified exit to Armory 10649 | -4/Factory | X0-1V1 revealed exit location to -4/Armory 10654 | -4/Factory | Identified Exp. EM Shield 10664 | -4/Factory | Lost 5 allies 10698 | -4/Factory | X0-1V1 mutated your Weapon slot to Power slot 10893 | -4/Factory | Spotted B-86 Titan 10945 | -4/Factory | X0-1V1 enhanced Transport squad support 10987 | -4/Factory | X0-1V1 sent you to a vault 10992 | -4/Factory | Found Prototype Slashing Weapon 10992 | -4/Factory | Identified Hvy. Scimitar of Distortion 11012 | -4/Factory | Found Prototype Device 11012 | -4/Factory | Identified Exp. Sensor Array 11022 | -4/Factory | Retrieved Zion intel report: Branch Access 11022 | -4/Factory | Identified exit to Upper Caves 11038 | -4/Factory | Retrieved Zion intel report: Unaware Schematics 11039 | -4/Factory | Zion Heavy squad teleported in 11079 | -4/Factory | X0-1V1 rewrote NE-0XS(Z) IFF filter 11219 | -4/Factory | Discovered new exit (range 6) 11239 | -4/Factory | X0-1V1 mutated your Propulsion slot to Weapon slot 11265 | -4/Factory | Zion Demo squad teleported in 11265 | -4/Factory | X0-1V1 downgraded hostiles (x1) 11290 | -4/Factory | X0-1V1 activates XOMVISION 11321 | -4/Factory | Entered Upper Caves 11322 | -4/Upper Caves | X0-1V1's Piety Tracker stolen by Master Thief 11323 | -4/Upper Caves | Encountered a Master Thief 11323 | -4/Upper Caves | Encountered a Master Thief 11323 | -4/Upper Caves | Encountered a Master Thief 11323 | -4/Upper Caves | Exp. EM Shield stolen by Master Thief 11410 | -4/Upper Caves | Learned location of Testing (-3) 11542 | -4/Upper Caves | Discovered new exit (range 18) 11548 | -4/Upper Caves | Entered another Upper Caves area 11550 | -4/Upper Caves | Encountered a Master Thief 11550 | -4/Upper Caves | Encountered a Master Thief 11550 | -4/Upper Caves | Encountered a Master Thief 11554 | -4/Upper Caves | Hvy. Scimitar of Distortion stolen by Master Thief 11580 | -4/Upper Caves | Lost 3 parts (1p2u) 11590 | -4/Upper Caves | X0-1V1 mutated your Weapon slot to Propulsion slot 11592 | -4/Upper Caves | Discovered new exit (range 13) 11634 | -4/Upper Caves | Identified exit to Warlord 11722 | -4/Upper Caves | X0-1V1 sent hostile P-70 Sage (x2) 11723 | -4/Upper Caves | X0-1V1 sent you into danger 11733 | -4/Upper Caves | Learned 8 Research zone layouts 11734 | -4/Upper Caves | Entered Warlord 11746 | -4/Warlord | System corruption cleaned by Quarantine Array 11827 | -4/Warlord | Rebuked by Warlord 11850 | -4/Warlord | Build established: Scavenger-Gladiator 11852 | -4/Warlord | Warlord's base attacked by MAIN.C 11865 | -4/Warlord | Found Prototype Energy Gun 11865 | -4/Warlord | Identified Vortex Shotgun 11953 | -4/Warlord | Opened Warlord's prototype stash 11955 | -4/Warlord | Found Prototype Device 11955 | -4/Warlord | Identified System Purifier 11962 | -4/Warlord | X0-1V1 vaporized surrounding terrain (radius 19) 11970 | -4/Warlord | Found Prototype Reactor 11994 | -4/Warlord | P-70 Sage assimilated allied 0M-YL3(g) 12034 | -4/Warlord | Lost 3 allies 12053 | -4/Warlord | Spotted B-90 Cyclops 12054 | -4/Warlord | Spotted B-86 Titan 12057 | -4/Warlord | Destroyed 16 combat bots 12060 | -4/Warlord | Destroyed B-90 Cyclops 12063 | -4/Warlord | Warlord forces counterattacked 12096 | -4/Warlord | Destroyed 12 combat bots 12137 | -4/Warlord | Found Vortex Shotgun 12184 | -4/Warlord | Spotted Striker 12193 | -4/Warlord | Spotted Executioner 12260 | -4/Warlord | Lost 15 allies 12343 | -4/Warlord | Spotted Striker 12383 | -4/Warlord | Identified exit to Proximity Caves 12383 | -4/Warlord | X0-1V1 revealed exit location to -3/Proximity Caves 12391 | -4/Warlord | X0-1V1 activates XOMVISION 12408 | -4/Warlord | Build established: Scavenger-Mutant 12417 | -4/Warlord | Spotted Striker 12454 | -4/Warlord | P-70 Sage assimilated allied ZL-5MW(Y) 12482 | -4/Warlord | Lost 5 allies 12527 | -4/Warlord | Warlord base infiltrated, sounded retreat 12528 | -4/Warlord | Enhanced Grunt warped into view 12528 | -4/Warlord | Enhanced Grunt warped into view 12528 | -4/Warlord | Enhanced Grunt warped into view 12528 | -4/Warlord | Enhanced Demolisher warped into view 12528 | -4/Warlord | Enhanced Demolisher warped into view 12528 | -4/Warlord | Enhanced Demolisher warped into view 12530 | -4/Warlord | Attached CPS modules to Enhanced Demolisher 12532 | -4/Warlord | Attached CPS modules to Enhanced Demolisher 12565 | -4/Warlord | Spotted Executioner 12565 | -4/Warlord | Spotted Executioner 12600 | -4/Warlord | Spotted Striker 12610 | -4/Warlord | Spotted Executioner 12617 | -4/Warlord | Found Prototype Launcher 12640 | -4/Warlord | Spotted Striker 12665 | -4/Warlord | Spotted B-90 Cyclops 12665 | -4/Warlord | Spotted Striker 12675 | -4/Warlord | Spotted B-86 Titan 12685 | -4/Warlord | Found Prototype Device 12693 | -4/Warlord | X0-1V1 sent you into danger 12702 | -4/Warlord | Identified Vortex Chain Reactor 12704 | -4/Warlord | Identified Exp. Shock Absorption System 12707 | -4/Warlord | Entered Proximity Caves 12721 | -3/Proximity Caves | Lost 12 allies 12739 | -3/Proximity Caves | Spotted B-86 Titan 12746 | -3/Proximity Caves | Attracted the attention of an 0b10 checkpoint 12878 | -3/Proximity Caves | Discovered new exit (range 8) 12882 | -3/Proximity Caves | Entered Research 12882 | -3/Research | Evolved 2 slots: Propulsion x1, Utility x1 12883 | -3/Research | Identified exit to Research 12890 | -3/Research | X0-1V1 mutated your Weapon slot to Propulsion slot 12900 | -3/Research | Discovered new exit (range 20) 12919 | -3/Research | X0-1V1 added 0b10 threat records associated with you (minor) 12933 | -3/Research | X0-1V1 activates XOMVISION 12963 | -3/Research | Entered Testing 12967 | -3/Testing | X0-1V1 revealed exit location to -2/Research 12975 | -3/Testing | Retrieved Zion intel report: Active Garrisons 12993 | -3/Testing | X0-1V1 sent you to a vault 12994 | -3/Testing | Found Hvy. Scimitar of Distortion 13002 | -3/Testing | Found Prototype Processor 13002 | -3/Testing | Identified Exp. Core Analyzer 13072 | -3/Testing | Spotted Striker 13083 | -3/Testing | Found Prototype Ballistic Cannon 13085 | -3/Testing | Identified Perforator 13086 | -3/Testing | Lost 4 parts (1n2u1w) 13086 | -3/Testing | Garrison activated, responded to threat 13091 | -3/Testing | Scanned by Researcher 13092 | -3/Testing | Destroyed Striker 13153 | -3/Testing | Destroyed 8 combat bots 13215 | -3/Testing | Found Prototype Energy Cannon 13238 | -3/Testing | Found Prototype Leg 13299 | -3/Testing | Retrieved Zion intel report: Component Stockpiles 13338 | -3/Testing | X0-1V1 sent allied X-82 Rainmaker (x4) 13381 | -3/Testing | Lost 3 allies 13382 | -3/Testing | Lost 3 parts (2n1u) 13414 | -3/Testing | Identified Chain Missile Launcher 13463 | -3/Testing | First assault squad dispatched 13482 | -3/Testing | Incoming assault squad redirected 13529 | -3/Testing | Found Prototype Device 13529 | -3/Testing | Identified Exp. ECM Suite 13586 | -3/Testing | X0-1V1 activates XOMVISION 13611 | -3/Testing | Spotted Striker 13612 | -3/Testing | X0-1V1 enhanced Transport squad support 13661 | -3/Testing | Core integrity restored by X0-1V1 (+195) 13721 | -3/Testing | X0-1V1 announced a LAN party 13736 | -3/Testing | Entered Research 13736 | -2/Research | Evolved 2 slots: Power x1, Utility x1 13747 | -2/Research | Zion Melee Resupply teleported in 13835 | -2/Research | Zion Explosive Resupply teleported in 13840 | -2/Research | Found Prototype Launcher 13840 | -2/Research | Identified Gui. Missile Launcher 13842 | -2/Research | Found Prototype Launcher 13842 | -2/Research | Identified Ragnarok Missile Launcher 13955 | -2/Research | X0-1V1 sent you to a vault 13979 | -2/Research | Found Adv. Force Booster 14055 | -2/Research | Discovered new exit (range 4) 14055 | -2/Research | Identified exit to Access 14062 | -2/Research | Identified exit to Quarantine 14062 | -2/Research | X0-1V1 revealed exit location to -2/Quarantine 14086 | -2/Research | Build established: Scavenger-Scout 14106 | -2/Research | Found Prototype Device 14106 | -2/Research | Identified Thermal Barrier 14121 | -2/Research | Spotted B-90 Cyclops 14128 | -2/Research | Spotted B-90 Cyclops 14236 | -2/Research | First assault squad dispatched 14261 | -2/Research | X0-1V1 sent hostile P-80 Master (x2) 14265 | -2/Research | Found Hvy. Scimitar of Distortion 14345 | -2/Research | Found Launcher Loader 14358 | -2/Research | Spotted B-90 Cyclops 14367 | -2/Research | Entered Quarantine 14383 | -2/Quarantine | Retrieved Zion intel report: Active Terminals 14393 | -2/Quarantine | Retrieved Zion intel report: Unaware Analyses 14402 | -2/Quarantine | Found Alien Artifact 14408 | -2/Quarantine | Cryocooling Duct disabled 14420 | -2/Quarantine | X0-1V1 added 0b10 threat records associated with you (considerable) 14423 | -2/Quarantine | Ambient heat levels rising (+20) 14423 | -2/Quarantine | Non-combat units ordered to evacuate 14476 | -2/Quarantine | Retrieved Zion intel report: Prototype Schematics 14548 | -2/Quarantine | Identified Core Reset Matrix 14548 | -2/Quarantine | Used Core Reset Matrix 14552 | -2/Quarantine | Detected hypermatrix surge 14552 | -2/Quarantine | Sensed 12 artifacts in vicinity 14556 | -2/Quarantine | Identified exit to Protoforge 14556 | -2/Quarantine | X0-1V1 revealed exit location to -2/Protoforge 14597 | -2/Quarantine | Sensors blinded by X0-1V1 14617 | -2/Quarantine | Build established: Scavenger-Ninja 14617 | -2/Quarantine | Search patrols dispatched 14626 | -2/Quarantine | Found Subatomic Replicator 14631 | -2/Quarantine | X0-1V1 sent you into danger 14637 | -2/Quarantine | X0-1V1 vaporized surrounding terrain (radius 19) 14646 | -2/Quarantine | Found Transdimensional Reconstructor 14651 | -2/Quarantine | Found Dimensional Node Initializer 14666 | -2/Quarantine | Spotted Fortress 14696 | -2/Quarantine | Discovered new exit (range 6) 14698 | -2/Quarantine | Entered Protoforge 14699 | -2/Protoforge | Sensed 2 artifacts in vicinity 14726 | -2/Protoforge | Superfortress began startup sequence 14730 | -2/Protoforge | X0-1V1 sent you to a vault 14731 | -2/Protoforge | Found Prototype Device 14731 | -2/Protoforge | Identified Exp. Cloaking Device 14734 | -2/Protoforge | Found Prototype Device 14734 | -2/Protoforge | Identified Exp. Weapon Cycler 14742 | -2/Protoforge | Found Prototype Device 14742 | -2/Protoforge | Identified Exp. Transmission Jammer 14749 | -2/Protoforge | Found Prototype Device 14749 | -2/Protoforge | Identified Femtoactuators 14776 | -2/Protoforge | Spotted B-90 Cyclops 14776 | -2/Protoforge | X0-1V1 sent you into danger 14792 | -2/Protoforge | X0-1V1 activates XOMVISION 14804 | -2/Protoforge | X0-1V1 mutated your Propulsion slot to Weapon slot 14850 | -2/Protoforge | Initialized slip node 14868 | -2/Protoforge | X0-1V1 revealed exit location to -1/Access 14873 | -2/Protoforge | X0-1V1 sent allied Mutant (x3) 14892 | -2/Protoforge | Spotted Decapitator 14894 | -2/Protoforge | Spotted Decapitator 14894 | -2/Protoforge | Spotted Decapitator 14894 | -2/Protoforge | Destroyed Decapitator 14894 | -2/Protoforge | Destroyed Decapitator 14894 | -2/Protoforge | Spotted Decapitator 14898 | -2/Protoforge | Destroyed Decapitator 14903 | -2/Protoforge | Destroyed Decapitator 14908 | -2/Protoforge | X0-1V1 whisked you away to safety 14912 | -2/Protoforge | Spotted Hotshot 14912 | -2/Protoforge | Spotted Hotshot 14912 | -2/Protoforge | Spotted Hotshot 14912 | -2/Protoforge | Spotted Hotshot 14912 | -2/Protoforge | Spotted Hotshot 14933 | -2/Protoforge | Lost 5 parts (1p1n2u1w) 14935 | -2/Protoforge | X0-1V1 activates XOMVISION 14944 | -2/Protoforge | Spotted Hotshot 14945 | -2/Protoforge | Spotted Hotshot 14947 | -2/Protoforge | Spotted Hotshot 14948 | -2/Protoforge | Spotted Hotshot 15001 | -2/Protoforge | X0-1V1 sent allied Lightning (x2) 15048 | -2/Protoforge | Found Prototype Device 15053 | -2/Protoforge | Spotted Immortal 15053 | -2/Protoforge | Spotted Immortal 15056 | -2/Protoforge | Spotted Decapitator 15056 | -2/Protoforge | Spotted Decapitator 15056 | -2/Protoforge | Spotted Decapitator 15056 | -2/Protoforge | Spotted Decapitator 15061 | -2/Protoforge | Destroyed Decapitator 15061 | -2/Protoforge | Destroyed Decapitator 15061 | -2/Protoforge | Destroyed Decapitator 15062 | -2/Protoforge | Destroyed Decapitator 15063 | -2/Protoforge | System corruption reached 10% 15100 | -2/Protoforge | Forge Plexus network access discovered 15105 | -2/Protoforge | Identified Crosscalibrator 15118 | -2/Protoforge | X0-1V1 activates XOMVISION 15132 | -2/Protoforge | X0-1V1 sent allied H-88 Terminator (x4) 15136 | -2/Protoforge | Allies destroyed Immortal 15144 | -2/Protoforge | Allies destroyed Immortal 15239 | -2/Protoforge | Found Cep. Weapon Articulator 15251 | -2/Protoforge | Found Faulty Exp. Force Booster 15253 | -2/Protoforge | Found Femtoactuators 15256 | -2/Protoforge | Found Faulty Exp. Force Booster 15345 | -2/Protoforge | X0-1V1 whisked you away to safety 15360 | -2/Protoforge | Build established: Scavenger-Gladiator 15401 | -2/Protoforge | X0-1V1 sent you into danger 15416 | -2/Protoforge | Spotted Decapitator 15426 | -2/Protoforge | Spotted Decapitator 15427 | -2/Protoforge | Destroyed Decapitator 15428 | -2/Protoforge | Spotted Decapitator 15430 | -2/Protoforge | Destroyed Decapitator 15430 | -2/Protoforge | Destroyed Decapitator 15433 | -2/Protoforge | Spotted Decapitator 15434 | -2/Protoforge | Destroyed Decapitator 15436 | -2/Protoforge | Spotted Decapitator 15436 | -2/Protoforge | Spotted Decapitator 15436 | -2/Protoforge | Spotted Decapitator 15436 | -2/Protoforge | Spotted Decapitator 15448 | -2/Protoforge | First assault squad dispatched 15465 | -2/Protoforge | Incoming assault squad redirected 15465 | -2/Protoforge | Lost 3 parts (2n1u) 15482 | -2/Protoforge | Destroyed 7 combat bots 15511 | -2/Protoforge | Found Cep. Deflector Sword 15518 | -2/Protoforge | Found Exp. Jetlance 15527 | -2/Protoforge | Found Exp. Jetlance 15534 | -2/Protoforge | Found Cep. Plasma Driver 15541 | -2/Protoforge | Found Faulty Cep. Plasma Driver 15542 | -2/Protoforge | Found Faulty Cep. XC Strikerail 15544 | -2/Protoforge | Found Faulty Cep. XC Strikerail 15550 | -2/Protoforge | Found Faulty Cep. Deflector Sword 15578 | -2/Protoforge | Spotted V786-d 15579 | -2/Protoforge | Spotted V116-i 15589 | -2/Protoforge | Found Ragnarok Missile Launcher 15605 | -2/Protoforge | Spotted V526-h 15613 | -2/Protoforge | Spotted Immortal 15616 | -2/Protoforge | Spotted Immortal 15629 | -2/Protoforge | Core integrity fell below 50% 15630 | -2/Protoforge | X0-1V1 activates XOMVISION 15654 | -2/Protoforge | Core integrity fell below 20% 15659 | -2/Protoforge | Destroyed by V786-d with Heavy Hardcell Cannon Last Messages --------------- 15646_ Slug penetrates V786-d. 15648_ Knocked back. 15650_ Penetrated by Slug. 15650_ Cmb. Antigrav System destroyed. 15650_ Ragnarok Missile Launcher destroyed. 15650_ Femtoactuators destroyed. 15650_ Knocked back. 15651_ X0-1V1 is amused. 15653_ Slug penetrates V786-d. 15653_ Slug penetrates Machine. 15653_ Penetrated by Slug. 15653_ Slug penetrates Reinforced Barrier. 15653_ Penetrated by Slug. 15653_ Slug penetrates Reinforced Barrier. 15654_ System corrupted: Component data lost. 15655_ Knocked back. 15656_ Penetrated by Slug. 15656_ Slug penetrates Reinforced Barrier. 15656_ Penetrated by Slug. 15659_ X0-1V1 laughs nastily! Map ----- +----------------------------------------------------+ | | | | | | | | | | | | | | | | | | | | | | | | | | | | | | | | | | | | | ?????????????????????????????????????????????????? | | ?????????????????????????????????????????????????? | | ?????????????????????????????????????????????????? | | ?????????????????????????????????????????????????? | | ?????????????????????????????????????????????????? | | ?????????????#################???????????????????? | | ?????????????#""""#"""" #""""#???????????????????? | | ?????????????#" [[" " @%%"#???????????????????? | | ?????????????#"] " % [!!"#???????????????????? | | ?????????????#" % ]!]"#???????????????????? | | ?????????????##"""" % """##???????????????????? | | ############## #############???????? | | ?????? | | ?????? | | ?????? | | ############## CV ##############??????? | | ?????????????##""" ""##???????????????????? | | ?????????????#"/] /["#???????????????????? | | ?????????????#"][[ V [ ]"#???????????????????? | | ?????????????#" [" l /"#???????????????????? | | ?????????????#""""# l%#""""#???????????????????? | | ?????????????####### #######???????????????????? | | ???????????????????# V#?????????????????????????? | | ???????????????????# #?????????????????????????? | | ???????????????????# #?????????????????????????? | | ???????????????????# =#?????????????????????????? | | ???????????????????# #?????????????????????????? | | ???????????????????# #?????????????????????????? | | ???????????????????# #?????????????????????????? | | ???????????????????# !/####################??????? | | ???????????????????# ! ! !##?????? | | ???????????????????#[ *% =! #?????? | +----------------------------------------------------+ Best States ------------- Heat Dissipation 137 Coolant Potential 360 Energy Generation 86 Energy Capacity 3500 Matter Stores 1600 Matter Capacity 1600 Sight Range 27 Robot Scan Range 20 Terrain Scan Density 10 ECM Strength 3 Jamming Range 22 Cloak Strength 5 Base Temperature (-) 150 Armor Coverage 225 Resistance: KI 37 Resistance: TH 21 Resistance: EX 75 Resistance: EM 75 Propulsion Shielding 66 Weapon Shielding 100 Projectile Deflection 15 Weapon Cycling 25 Melee Speed Boost 50 Phase Shifting 15 Evasion (%) 73 Targeting Accuracy 30 Melee Accuracy 8 Core Analysis 6 Recoil Reduction 5 Matter Filtering 50 Force Boost 50 Item Schematics ----------------- Imp. Matter Neutralizer | -2/Protoforge | Archive Exp. Shield Generator | -2/Protoforge | Archive Adv. Micro-nuke Launcher | -2/Protoforge | Archive Robot Schematics ------------------ X-87 Electro | -2/Protoforge | Archive R-10 Processor | -2/Protoforge | Archive Fabricated ------------ Nothing Repaired ---------- Nothing Studied --------- None Alien Tech Used ----------------- Core Reset Matrix Dimensional Node Initializer Achievements -------------- None Challenges ------------ None Game ------ Seed SigixWeaponClaw Manual? 0 Play Time 03:49:05 Cumulative 547.3 hours Start 2026.07.22 @ 10:23:32 End 2026.07.27 @ 13:29:50 Sessions 11 Manual Loads 0 Difficulty Rogue Special Mode None Game No. 454 Rogue 418 Adventurer 36 Explorer 0 Win Type - Total 27 Types 10/1/14/0/0/1/1/0/0/0 Lore% 74 Gallery% 86 Achievement% 74 Wizard Run 0 Options --------- Layout 0 ASCII 0 Keyboard 0 Movement Mouse Keybinds 0 Fullscreen 1 Font 18/SmallcapsGlow Map View 76x50 Zoom Use 0% Tactical HUD 1 Map Filters NONE Filters NONE Steam 1 RUN: ee4edf44-3bb6-4878-b7c7-280f7b428994